Workbook

Sheet RESUMO
A1: PLANILHA DE CUSTOS E FORMAÇÃO DE PREÇOS
A4: Razão Social: | P4: *Preencher
A5: CNPJ: | P5: *Preencher
A6: Inscrição Estadual: | P6: *Preencher
A7: Endereço: | P7: *Preencher
A8: Telefone | P8: *Preencher
A9: Email: | P9: *Preencher
A10: Responsável: | P10: *Preencher
A11: Resumo de Custos Contratuais
A13: ITEM | B13: POSTOS | F13: Nº DE POSTOS | H13: VALOR MENSAL | J13: VALOR ANUAL | L13: VALOR CONTRATUAL PREVISTO
A14: Item I | B14: Motorista | F14: 2 | H14: ='I - Motorista'!G146 -> 0 | J14: ='I - Motorista'!G147+'I - Motorista'!G142+'I - Motorista'!G135 -> 23390 | L14: ='I - Motorista'!G149 -> 46780 | P14: *Preencimento Automático
A15: Item II | B15: Copeiragem | F15: 1 | H15: ='II-Copa'!G139 ->  | J15: ='II-Copa'!G140+'II-Copa'!G135 ->  | L15: ='II-Copa'!G142 ->  | P15: *Preencimento Automático
A16: Item III | B16: Limpeza I | F16: 4 | H16: ='III - Limpeza I'!G139 -> 0 | J16: ='III - Limpeza I'!G140+'III - Limpeza I'!G135 -> 0 | L16: ='III - Limpeza I'!G142 -> 0 | P16: *Preencimento Automático
A17: Item IV | B17: Limpeza II | F17: 1 | H17: ='IV - Limpeza II'!G139 -> 0 | J17: ='IV - Limpeza II'!G140+'IV - Limpeza II'!G135 -> 0 | L17: ='IV - Limpeza II'!G142 -> 0 | P17: *Preencimento Automático
A18: Item V | B18: Recepção I | F18: 1 | H18: ='V- Recepção I'!G139 ->  | J18: ='V- Recepção I'!G140+'V- Recepção I'!G135 ->  | L18: ='V- Recepção I'!G142 ->  | P18: *Preencimento Automático
A19: Item V | B19: Recepção II | F19: 1 | H19: ='VI - Recepção II'!G139 ->  | J19: ='VI - Recepção II'!G140+'VI - Recepção II'!G135 ->  | L19: ='VI - Recepção II'!G142 ->  | P19: *Preencimento Automático
A20: Item VII | B20: Auxiliar de Manutenção Predial | F20: 1 | H20: ='VII - Auxiliar de Manut. Pred.'!G139 ->  | J20: ='VII - Auxiliar de Manut. Pred.'!G140+'VII - Auxiliar de Manut. Pred.'!G135 ->  | L20: ='VII - Auxiliar de Manut. Pred.'!G142 ->  | P20: *Preencimento Automático
A21: TOTAIS | F21: =SUM(F14:G20) -> 11 | H21: =SUM(H14:I20) ->  | J21: =SUM(J14:K20) ->  | L21: =SUM(L14:O20) -> 

Sheet I - Motorista
A1: PLANILHA DE CUSTOS E FORMAÇÃO DE PREÇOS
A2: PRESTAÇÃO DE SERVIÇOS DE CHOFERAGEM
A3: Razão Social: | H3: *Preencher
A4: CNPJ: | E4: Pregão n°: | F4: Data: | H4: *Preencher
A6: DISCRIMINAÇÃO DOS SERVIÇOS
A7: A | B7: Data de apresentação da proposta (dia/mês/ano)
A8: B | B8: Município/UF
A9: C | B9: Ano Acordo, Convenção ou Sentença Normativa em Dissídio Coletivo
A10: D | B10: No. Registro acordo convenção coletiva
A11: E | B11: Nº de meses de execução contratual | F11: 24 meses
A13: IDENTIFICAÇÃO DO SERVIÇO
A14: Unidade | B14: Tipo de Serviço | F14: Quantidade a contratar
A15: Postos | B15: Motorista | F15: -
A16: Postos | B16: Copeiro | F16: -
A17: Postos | B17: Limpeza I | F17: -
A18: Postos | B18: Limpeza II | F18: -
A19: Postos | B19: Recepcionista I | F19: -
A20: Postos | B20: Recepcionista II | F20: -
A21: Postos | B21: Auxiliar de Manutenção Predial | F21: -
A22: DADOS COMPLEMENTARES PARA CUSTOS REFERENTES À MÃO DE OBRA
A23: A | B23: Salário Normativo da categoria Profissional Vigente
A24: B | B24: Categoria profissional
A25: C | B25: Data-base da categoria
A27: MÓDULO 1 - COMPOSIÇÃO DA REMUNERAÇÃO
A28: 1 | B28: Composição da Remuneração: | F28: % | G28: Valor (R$)
A29: A | B29: Salário Base
A30: B | B30: Adicionais (especificar)
A31: *Diárias, adicionais de horas extras e noturno extra em planilha à parte
A32: Valor Total da Remuneração: | G32: =SUM(G29:G31) -> 0
A34: MÓDULO 2 - ENCARGOS SOCIAIS E TRABALHISTAS INCIDENTES SOBRE A REMUNERAÇÃO
A36: Grupo 2.1 | B36: Encargos Previdenciários e FGTS | F36: % | G36: Valor (R$)
A37: A | B37: INSS | F37: 0.2 | G37: =$G$32*F37 -> 0
A38: B | B38: SESI ou SESC | F38: 0.015 | G38: =$G$32*F38 -> 0
A39: C | B39: SENAI ou SENAC | F39: 0.01 | G39: =$G$32*F39 -> 0
A40: D | B40: INCRA | F40: 0.002 | G40: =$G$32*F40 -> 0
A41: E | B41: Salário educação | F41: 0.025 | G41: =$G$32*0.025 -> 0
A42: F | B42: FGTS | F42: 0.08 | G42: =$G$32*F42 -> 0
A43: G | B43: RAT (Risco Ambiental do Trabalho) x FAP (2,00) | F43: 0.03 | G43: =$G$32*F43 -> 0
A44: H | B44: SEBRAE | F44: 0.006 | G44: =$G$32*F44 -> 0
A45: Valor Total dos encargos previdenciários e FGTS: | F45: =SUM(F37:F44) -> 0.368 | G45: =SUM(G37:G44) -> 0
A47: Grupo 2.2 | B47: 13º Salário e Afastamentos | F47: % | G47: Valor (R$)
A48: A | B48: 13º Salário | F48: 0.08333 | G48: =SUM($G$32*F48) -> 0
A49: B | B49: Férias | F49: 0.0833 | G49: =G32*F49 -> 0
A50: C | B50: Adicional de férias (1/3) | F50: =1/3/12 -> 0.02778 | G50: =SUM($G$32*F50) -> 0
A51: D | B51: Aviso prévio trabalhado *(1) | F51: =7/30/12 -> 0.01944 | G51: =(G32)*F51 -> 0
A52: E | B52: Ausência por doença *(2) | F52: =5/30/12 -> 0.01389 | G52: =G32*F52 -> 0
A53: F | B53: Licença Paternidade *(3) | F53: =5/30/12*0.015 -> 0.00021 | G53: =G32*F53 -> 0
A54: G | B54: Ausências Legais *(4) | F54: =1/30/12 -> 0.00278 | G54: =G32*F54 -> 0
A55: H | B55: Ausência por acidente de trabalho *(5) | F55: =15/30/12*0.08 -> 0.00333 | G55: =G32*F55 -> 0
A56: J | B56: Outros (especificar) | G56: =G32*F56 -> 0
B57: Subtotal: | F57: =SUM(F48:F56) -> 0.23406 | G57: =SUM($G$32*F57) -> 0
A58: K | B58: Incidência do grupo 2.1 sobre o grupo 2.2 | F58: =F45*F57 -> 0.08613 | G58: =F58*G32 -> 0
A59: Valor total do 13º Salário e Afastamentos: | F59: =SUM(F57:F58) -> 0.32019 | G59: =G57+G58 -> 0
A61: Grupo 2.3 | B61: Afastamento Maternidade | F61: % | G61: Valor (R$)
A62: A | B62: Afastamento Maternidade *(6) | F62: =4/12*0.02 -> 0.00667 | G62: =G32*F62 -> 0
A63: B | B63: Férias sobre licença maternidade *(7) | F63: =0.1111*0.02*4/12 -> 0.00074 | G63: =G32*F63 -> 0
B64: Subtotal: | F64: =SUM(F62:F63) -> 0.00741 | G64: =SUM($G$32*F64) -> 0
A65: C | B65: Incidência do grupo 2.1 sobre o grupo 2.3 | F65: =F64*F45 -> 0.00273 | G65: =F65*G32 -> 0
A66: Valor total do Afastamento Maternidade: | F66: =SUM(F64:F65) -> 0.01014 | G66: =SUM(G64:G65) -> 0
A68: Grupo 2.4 | B68: Provisão para Rescisão | F68: % | G68: Valor (R$)
A69: A | B69: Aviso Prévio Indenizado *(8) | F69: =0.05*1/12 -> 0.00417 | G69: =($G$32)*F69 -> 0
A70: B | B70: Indenização Adicional *(9) | F70: =0.02*1/12 -> 0.00167 | G70: =($G$32)*F70 -> 0
A71: C | B71: Indenização (rescisão sem justa causa - multa de 40% do FGTS) *(10) | F71: =1*0.4*0.08 -> 0.032 | G71: =($G$32)*F71 -> 0
A72: D | B72: Indenização (rescisão sem justa causa - contribuição de 10% do FGTS) *(11) | F72: =1*0.1*0.08 -> 0.008 | G72: =($G$32)*F72 -> 0
A73: Subtotal: | F73: =SUM(F69:F72) -> 0.04584 | G73: =SUM(G69:G72) -> 0
A74: E | B74: Incidência do FGTS sobre o aviso prévio indenizado | F74: =F42*F69 -> 0.00033 | G74: =F74*$G$32 -> 0
A75: F | B75: Incidência do FGTS sobre o período médio de afastamento superior a 15 dias motivado por acidente de trabalho | F75: =F42*F55 -> 0.00027 | G75: =F75*$G$32 -> 0
A76: Valor total da Provisão para Rescisão: | F76: =SUM(F73:F75) -> 0.04644 | G76: =SUM(G73:G75) -> 0
A78: QUADRO RESUMO - ENCARGOS SOCIAIS E TRABALHISTAS
A79: 2 | B79: Encargos Sociais e Trabalhistas | F79: % | G79: Valor (R$)
A80: 2.1 | B80: Encargos Previdenciários e FGTS | F80: =F45 -> 0.368 | G80: =G45 -> 0
A81: 2.2 | B81: 13º Salário e Afastamentos | F81: =F59 -> 0.32019 | G81: =G59 -> 0
A82: 2.3 | B82: Afastamento Maternidade | F82: =F66 -> 0.01014 | G82: =G66 -> 0
A83: 2.4 | B83: Provisão para Rescisão | F83: =F76 -> 0.04644 | G83: =G76 -> 0
A84: Valor Total de encargos sociais e trabalhistas: | F84: =SUM(F80:F83) -> 0.74477 | G84: =SUM(G80:G83) -> 0
A86: MÓDULO 3 - BENEFÍCIOS MENSAIS E DIÁRIOS
A87: 3 | B87: Benefícios Mensais e Diários (deduzida parcela do empregado) | F87: % | G87: Valor (R$)
A88: A | B88: Transporte
A89: B | B89: Desconto legal sobre transporte (máximo de 6% sobre o salário base) | H89: (inserir valor negativo)
A90: C | B90: Auxílio alimentação
A91: D | B91: Assistência médica e Familiar
A92: E | B92: Auxílio creche
A93: F | B93: Seguro de vida
A94: G | B94: Auxílio Funeral
A95: H | B95: Cesta Básica
A96: I | B96: Assistência odontológica
A97: J | B97: Outros (especificar)
A98: Valor Total de benefícios mensais e diários: | G98: =SUM(G88:G97) -> 0
A100: MÓDULO 4 - INSUMOS DIVERSOS
A101: 4 | B101: Insumos Diversos | F101: % | G101: Valor (R$)
A102: A | B102: Uniformes
A103: B | B103: EPIs
A104: C | B104: Materiais
A105: D | B105: Equipamentos (ponto eletrônico, outros)
A106: D | B106: Aparelho celular
A107: F | B107: Franquia de telefonia celular
A108: G | B108: Outros (especificar)
A109: Valor Total de insumos diversos: | G109: =SUM(G102:G108) -> 0
A111: VALOR TOTAL DE REMUNERAÇÃO + ENCARGOS SOCIAIS + BENEFÍCIOS + INSUMOS | G111: =G32+G84+G98+G109 -> 0
A113: MÓDULO 5 - BONIFICAÇÃO E OUTRAS DESPESAS
A114: 5 | B114: Bonificações e outras despesas | F114: % | G114: Valor (R$)
A115: A | B115: LDI - Lucro e Despesas Indiretas | G115: =F115*$G$111 -> 0
A116: B | B116: Despesas Administrativas / Operacionais | G116: =F116*$G$111 -> 0
A117: C | B117: Outras despesas (especificar) | G117: =F117*$G$111 -> 0
A118: Valor Total de bonificações e outras despesas: | F118: =SUM(F115:F117) -> 0 | G118: =SUM(G115:G117) -> 0
A120: MÓDULO 6 - TRIBUTAÇÃO SOBRE O FATURAMENTO
A121: 6 | B121: Tributos | F121: % | G121: Valor (R$)
A122: A | B122: ISS | G122: =($G$111+$G$118)/(1-$F$125)*F122 -> 0
A123: B | B123: PIS | G123: =($G$111+$G$118)/(1-$F$125)*F123 -> 0
A124: C | B124: COFINS | G124: =($G$111+$G$118)/(1-$F$125)*F124 -> 0
A125: Valor Total dos tributos: | F125: =SUM(F122:F124) -> 0 | G125: =SUM(G122:G124) -> 0
A127: VALOR MENSAL TOTAL POR EMPREGADO | G127: =G111+G118+G125 -> 0
A129: 7 - PREVISÃO DE ADICIONAL NOTURNO E DE HORAS EXTRAS ANUAL
A130: Benefício | C130: Previsão (hs) / ano | D130: Adicional | E130: Valor Base | F130: Valor com Encargos | G130: Valor com Impostos
A132: A - Hora extra (dias úteis) | C132: 260 | D132: 0.6 | E132: =C132*(D132+1)*$G$32/220 -> 0 | F132: =E132*(1+$F$84) -> 0 | G132: =F132/(1-$F$125) -> 0 | H132: *Viagens antes das 8hs ou após 18hs: 216hs e com fator de segurança de 20% = 260hs
A133: B - Hora extra (repouso/feriado) | C133: 78 | D133: 1 | E133: =C133*(D133+1)/220*$G$32 -> 0 | F133: =E133*(1+$F$84) -> 0 | G133: =F133/(1-$F$125) -> 0 | H133: *Viagens aos domingos: 65hs e com fator de segurança de 20% = 78hs
A134: C - Hora extra noturna | C134: 100 | D134: 0.2 | E134: =C134*$G$32/220*(1+D132)*(1+D134)*(1/52.5*60) -> 0 | F134: =E134*(1+$F$84) -> 0 | G134: =F134/(1-$F$125) -> 0 | H134: *Total de horas após 22hs: 84hs e com fator de segurança de 20% = 100 hs
A135: Valor Total de Adicional Noturno e de Horas Extras: | G135: =SUM(G132:G134) -> 0
A137: 8 - PREVISÃO DE DIÁRIAS E INDENIZAÇÃO DE ALIMENTAÇÃO ANUAL
A138: Benefício | C138: Previsão Anual | D138: Valor Médio | E138: Valor Base | F138: Valor com Bonificações | G138: Valor com Impostos
A140: Diária | C140: 67 | D140: 300 | E140: =C140*D140 -> 20100 | F140: =E140*(1+$F$118) -> 20100 | G140: =F140/(1-$F$125) -> 20100 | H140: *Média de diárias por ano (R$16.565,71) / diária de BH-SP (R$300,00) * 1,2 (fator de segurança) = 67
A141: Indenização de Alimentação | C141: 47 | D141: 70 | E141: =C141*D141 -> 3290 | F141: =E141*(1+$F$118) -> 3290 | G141: =F141/(1-$F$125) -> 3290 | H141: *Média anual de 39 indenizações * 1,2 (fator de segurança) = 47
A142: Valor Total de previsão de diárias e indenização de alimentação: | G142: =SUM(G140:G141) -> 23390
A144: QUADRO RESUMO DO VALOR MENSAL DO SERVIÇO
A145: ITEM | B145: DESCRIÇÃO | E145: QUANT. DE EMPREGADO PARA O SERVIÇO | F145: VALOR PROPOSTO POR EMPREGADO | G145: VALOR TOTAL DO SERVIÇO
F146: =G127 -> 0 | G146: =F146*E146 -> 0 | H146: *Valor Mensal sem horas extras, diárias e indenizações
A147: VALOR ANUAL DO SERVIÇO | G147: =G146*12 -> 0
A149: VALOR TOTAL BIENAL DO SERVIÇO COM HORAS EXTRAS, NOTURNAS E DIÁRIAS/INDENIZAÇÕES | G149: =(G135+G142+G147)*2 -> 46780
A151: *(1) Redução de 7 dias ou de 2h por dia. (Percentual relativo a contrato de 12 meses
A152: *(2) Estimativa de 5 dias de licença por ano
A153: *(3) Estimativa de 1,5% dos funcionários usufruindo 5 dias de licença por ano
A154: *(4) Estimativa de 1 ausência por ano
A155: *(5) Estimativa de 1 licença de 15 dias por ano para 8% dos funcionários
A156: *(6) Estimativa de 2% dos funcionários usufruindo de 4 meses de licença por ano
A157: *(7) Estimativa de 2% dos funcionários usufruindo de 4 meses de licença por ano
A158: *(8) Estimativa de que 5% dos funcionários serão substituídos em um ano.
A159: *(9) Estimativa de que 2% dos funcionários serão demitidos com indenização adicional.
A160: *(10) Multa de 40% do FGTS em relação aos trabalhadores contratados.
A161: *(11) Contribuição de 10% do FGTS em relação aos trabalhadores contratados.

Sheet II-Copa
A1: PLANILHA DE CUSTOS E FORMAÇÃO DE PREÇOS
A2: PRESTAÇÃO DE SERVIÇOS DE COPEIRAGEM
A3: ='I - Motorista'!A3:G3 -> Razão Social: | H3: *Preenchimento automático
A4: ='I - Motorista'!A4:D4 -> CNPJ: | D4: ='I - Motorista'!E4 -> Pregão n°: | F4: ='I - Motorista'!F4:G4 -> Data: | H4: *Preenchimento automático
A6: DISCRIMINAÇÃO DOS SERVIÇOS
A7: A | B7: Data de apresentação da proposta (dia/mês/ano)
A8: B | B8: Município/UF
A9: C | B9: Ano Acordo, Convenção ou Sentença Normativa em Dissídio Coletivo
A10: D | B10: No. Registro acordo convenção coletiva
A11: E | B11: Nº de meses de execução contratual | F11: 24 meses
A13: IDENTIFICAÇÃO DO SERVIÇO
A14: Unidade | B14: Tipo de Serviço | F14: Quantidade a contratar
A15: Postos | B15: Motorista | F15: -
A16: Postos | B16: Copeiro | F16: -
A17: Postos | B17: Limpeza I | F17: -
A18: Postos | B18: Limpeza II | F18: -
A19: Postos | B19: Recepcionista I | F19: -
A20: Postos | B20: Recepcionista II | F20: -
A21: Postos | B21: Auxiliar de Manutenção Predial | F21: -
A22: DADOS COMPLEMENTARES PARA CUSTOS REFERENTES À MÃO DE OBRA
A23: A | B23: Salário Normativo da categoria Profissional Vigente
A24: B | B24: Categoria profissional
A25: C | B25: Data-base da categoria
A27: MÓDULO 1 - COMPOSIÇÃO DA REMUNERAÇÃO
A28: 1 | B28: Composição da Remuneração: | F28: % | G28: Valor (R$)
A29: A | B29: Salário Base
A30: B | B30: Adicionais (especificar)
A31: *Diárias, adicionais de horas extras e noturno extra em planilha à parte
A32: Valor Total da Remuneração: | G32: =SUM(G29:G31) -> 0
A34: MÓDULO 2 - ENCARGOS SOCIAIS E TRABALHISTAS INCIDENTES SOBRE A REMUNERAÇÃO
A36: Grupo 2.1 | B36: Encargos Previdenciários e FGTS | F36: % | G36: Valor (R$)
A37: A | B37: INSS | F37: 0.2 | G37: =$G$32*F37 -> 0
A38: B | B38: SESI ou SESC | F38: 0.015 | G38: =$G$32*F38 -> 0
A39: C | B39: SENAI ou SENAC | F39: 0.01 | G39: =$G$32*F39 -> 0
A40: D | B40: INCRA | F40: 0.002 | G40: =$G$32*F40 -> 0
A41: E | B41: Salário educação | F41: 0.025 | G41: =$G$32*0.025 -> 0
A42: F | B42: FGTS | F42: 0.08 | G42: =$G$32*F42 -> 0
A43: G | B43: RAT (Risco Ambiental do Trabalho) x FAP (2,00) | F43: 0.03 | G43: =$G$32*F43 -> 0
A44: H | B44: SEBRAE | F44: 0.006 | G44: =$G$32*F44 -> 0
A45: Valor Total dos encargos previdenciários e FGTS: | F45: =SUM(F37:F44) -> 0.368 | G45: =SUM(G37:G44) -> 0
A47: Grupo 2.2 | B47: 13º Salário e Afastamentos | F47: % | G47: Valor (R$)
A48: A | B48: 13º Salário | F48: 0.08333 | G48: =SUM($G$32*F48) -> 0
A49: B | B49: Férias | F49: 0.0833 | G49: =G32*F49 -> 0
A50: C | B50: Adicional de férias (1/3) | F50: =1/3/12 -> 0.02778 | G50: =SUM($G$32*F50) -> 0
A51: D | B51: Aviso prévio trabalhado *(1) | F51: =7/30/12 -> 0.01944 | G51: =(G32)*F51 -> 0
A52: E | B52: Ausência por doença *(2) | F52: =5/30/12 -> 0.01389 | G52: =G32*F52 -> 0
A53: F | B53: Licença Paternidade *(3) | F53: =5/30/12*0.015 -> 0.00021 | G53: =G32*F53 -> 0
A54: G | B54: Ausências Legais *(4) | F54: =1/30/12 -> 0.00278 | G54: =G32*F54 -> 0
A55: H | B55: Ausência por acidente de trabalho *(5) | F55: =15/30/12*0.08 -> 0.00333 | G55: =G32*F55 -> 0
A56: J | B56: Outros (especificar) | G56: =G32*F56 -> 0
B57: Subtotal: | F57: =SUM(F48:F56) -> 0.23406 | G57: =SUM($G$32*F57) -> 0
A58: K | B58: Incidência do grupo 2.1 sobre o grupo 2.2 | F58: =F45*F57 -> 0.08613 | G58: =F58*G32 -> 0
A59: Valor total do 13º Salário e Afastamentos: | F59: =SUM(F57:F58) -> 0.32019 | G59: =G57+G58 -> 0
A61: Grupo 2.3 | B61: Afastamento Maternidade | F61: % | G61: Valor (R$)
A62: A | B62: Afastamento Maternidade *(6) | F62: =4/12*0.02 -> 0.00667 | G62: =G32*F62 -> 0
A63: B | B63: Férias sobre licença maternidade *(7) | F63: =0.1111*0.02*4/12 -> 0.00074 | G63: =G32*F63 -> 0
B64: Subtotal: | F64: =SUM(F62:F63) -> 0.00741 | G64: =SUM($G$32*F64) -> 0
A65: C | B65: Incidência do grupo 2.1 sobre o grupo 2.3 | F65: =F64*F45 -> 0.00273 | G65: =F65*G32 -> 0
A66: Valor total do Afastamento Maternidade: | F66: =SUM(F64:F65) -> 0.01014 | G66: =SUM(G64:G65) -> 0
A68: Grupo 2.4 | B68: Provisão para Rescisão | F68: % | G68: Valor (R$)
A69: A | B69: Aviso Prévio Indenizado *(8) | F69: =0.05*1/12 -> 0.00417 | G69: =($G$32)*F69 -> 0
A70: B | B70: Indenização Adicional *(9) | F70: =0.02*1/12 -> 0.00167 | G70: =($G$32)*F70 -> 0
A71: C | B71: Indenização (rescisão sem justa causa - multa de 40% do FGTS) *(10) | F71: =1*0.4*0.08 -> 0.032 | G71: =($G$32)*F71 -> 0
A72: D | B72: Indenização (rescisão sem justa causa - contribuição de 10% do FGTS) *(11) | F72: =1*0.1*0.08 -> 0.008 | G72: =($G$32)*F72 -> 0
A73: Subtotal: | F73: =SUM(F69:F72) -> 0.04584 | G73: =SUM(G69:G72) -> 0
A74: E | B74: Incidência do FGTS sobre o aviso prévio indenizado | F74: =F42*F69 -> 0.00033 | G74: =F74*$G$32 -> 0
A75: F | B75: Incidência do FGTS sobre o período médio de afastamento superior a 15 dias motivado por acidente de trabalho | F75: =F42*F55 -> 0.00027 | G75: =F75*$G$32 -> 0
A76: Valor total da Provisão para Rescisão: | F76: =SUM(F73:F75) -> 0.04644 | G76: =SUM(G73:G75) -> 0
A78: QUADRO RESUMO - ENCARGOS SOCIAIS E TRABALHISTAS
A79: 2 | B79: Encargos Sociais e Trabalhistas | F79: % | G79: Valor (R$)
A80: 2.1 | B80: Encargos Previdenciários e FGTS | F80: =F45 -> 0.368 | G80: =G45 -> 0
A81: 2.2 | B81: 13º Salário e Afastamentos | F81: =F59 -> 0.32019 | G81: =G59 -> 0
A82: 2.3 | B82: Afastamento Maternidade | F82: =F66 -> 0.01014 | G82: =G66 -> 0
A83: 2.4 | B83: Provisão para Rescisão | F83: =F76 -> 0.04644 | G83: =G76 -> 0
A84: Valor Total de encargos sociais e trabalhistas: | F84: =SUM(F80:F83) -> 0.74477 | G84: =SUM(G80:G83) -> 0
A86: MÓDULO 3 - BENEFÍCIOS MENSAIS E DIÁRIOS
A87: 3 | B87: Benefícios Mensais e Diários (deduzida parcela do empregado) | F87: % | G87: Valor (R$)
A88: A | B88: Transporte
A89: B | B89: Desconto legal sobre transporte (máximo de 6% sobre o salário base) | H89: (inserir valor negativo)
A90: C | B90: Auxílio alimentação
A91: D | B91: Assistência médica e Familiar
A92: E | B92: Auxílio creche
A93: F | B93: Seguro de vida
A94: G | B94: Auxílio Funeral
A95: H | B95: Cesta Básica
A96: I | B96: Assistência odontológica
A97: J | B97: Outros (especificar)
A98: Valor Total de benefícios mensais e diários: | G98: =SUM(G88:G97) -> 0
A100: MÓDULO 4 - INSUMOS DIVERSOS
A101: 4 | B101: Insumos Diversos | F101: % | G101: Valor (R$)
A102: A | B102: Uniformes
A103: B | B103: EPIs
A104: C | B104: Materiais
A105: D | B105: Equipamentos (ponto eletrônico, outros)
A106: D | B106: Aparelho celular
A107: F | B107: Franquia de telefonia celular
A108: G | B108: Outros (especificar)
A109: Valor Total de insumos diversos: | G109: =SUM(G102:G108) -> 0
A111: VALOR TOTAL DE REMUNERAÇÃO + ENCARGOS SOCIAIS + BENEFÍCIOS + INSUMOS | G111: =G32+G84+G98+G109 -> 0
A113: MÓDULO 5 - BONIFICAÇÃO E OUTRAS DESPESAS
A114: 5 | B114: Bonificações e outras despesas | F114: % | G114: Valor (R$)
A115: A | B115: LDI - Lucro e Despesas Indiretas | G115: =F115*$G$111 -> 0
A116: B | B116: Despesas Administrativas / Operacionais | G116: =F116*$G$111 -> 0
A117: C | B117: Outras despesas (especificar) | G117: =F117*$G$111 -> 0
A118: Valor Total de bonificações e outras despesas: | F118: =SUM(F115:F117) -> 0 | G118: =SUM(G115:G117) -> 0
A120: MÓDULO 6 - TRIBUTAÇÃO SOBRE O FATURAMENTO
A121: 6 | B121: Tributos | F121: % | G121: Valor (R$)
A122: A | B122: ISS | G122: =($G$111+$G$118)/(1-$F$125)*F122 -> 0
A123: B | B123: PIS | G123: =($G$111+$G$118)/(1-$F$125)*F123 -> 0
A124: C | B124: COFINS | G124: =($G$111+$G$118)/(1-$F$125)*F124 -> 0
A125: Valor Total dos tributos: | F125: =SUM(F122:F124) -> 0 | G125: =SUM(G122:G124) -> 0
A127: VALOR MENSAL TOTAL POR EMPREGADO | G127: =G111+G118+G125 -> 0
A129: 7 - PREVISÃO DE ADICIONAL NOTURNO E DE HORAS EXTRAS
A130: Benefício | C130: Previsão (hs) | D130: Adicional | E130: Valor Base | F130: Valor com Encargos | G130: Valor com Impostos
J131: http://www.portaleducacao.com.br/contabilidade/artigos/51238/calculo-hora-extra-noturna
A132: A - Hora extra (dias úteis) | C132: 288 | D132: 0.5 | E132: =C132*(D132+1)*$G$32/220 -> 0 | F132: =E132*(1+$F$84) -> 0 | G132: =F132/(1-$F$125) -> 0
A133: B - Hora extra (repouso/feriado) | C133: 36 | D133: 1 | E133: =C133*(D133+1)/220*$G$32 -> 0 | F133: =E133*(1+$F$84) -> 0 | G133: =F133/(1-$F$125) -> 0
A134: C - Hora extra noturna | C134: 48 | D134: 0.2 | E134: =C134*$G$32/220*(1+D132)*(1+D134)*(1/52.5*60) -> 0 | F134: =E134*(1+$F$84) -> 0 | G134: =F134/(1-$F$125) -> 0
A135: Valor Total de Adicional Noturno e de Horas Extras: | G135: =SUM(G132:G134) -> 0
A137: QUADRO RESUMO DO VALOR MENSAL DO SERVIÇO
A138: ITEM | B138: DESCRIÇÃO | E138: QUANT. DE EMPREGADO PARA O SERVIÇO | F138: VALOR PROPOSTO POR EMPREGADO | G138: VALOR TOTAL DO SERVIÇO
E139: - | F139: =G127 -> 0 | G139: =F139*E139 ->  | H139: *Valor Mensal sem horas extras
A140: VALOR DO SERVIÇO ANUAL | G140: =G139*12 -> 
A142: VALOR TOTAL BIENAL DO SERVIÇO COM HORAS EXTRAS E NOTURNAS | G142: =(G135+G140)*2 -> 
A144: *(1) Redução de 7 dias ou de 2h por dia. (Percentual relativo a contrato de 12 meses
A145: *(2) Estimativa de 5 dias de licença por ano
A146: *(3) Estimativa de 1,5% dos funcionários usufruindo 5 dias de licença por ano
A147: *(4) Estimativa de 1 ausência por ano
A148: *(5) Estimativa de 1 licença de 15 dias por ano para 8% dos funcionários
A149: *(6) Estimativa de 2% dos funcionários usufruindo de 4 meses de licença por ano
A150: *(7) Estimativa de 2% dos funcionários usufruindo de 4 meses de licença por ano
A151: *(8) Estimativa de que 5% dos funcionários serão substituídos em um ano.
A152: *(9) Estimativa de que 2% dos funcionários serão demitidos com indenização adicional.
A153: *(10) Multa de 40% do FGTS em relação aos trabalhadores contratados.
A154: *(11) Contribuição de 10% do FGTS em relação aos trabalhadores contratados.

Sheet III - Limpeza I
A1: PLANILHA DE CUSTOS E FORMAÇÃO DE PREÇOS
A2: PRESTAÇÃO DE SERVIÇOS DE LIMPEZA I
A3: ='I - Motorista'!A3:G3 -> Razão Social: | H3: *Preenchimento automático
A4: ='I - Motorista'!A4:D4 -> CNPJ: | D4: ='I - Motorista'!E4 -> Pregão n°: | F4: ='I - Motorista'!F4:G4 -> Data: | H4: *Preenchimento automático
A6: DISCRIMINAÇÃO DOS SERVIÇOS
A7: A | B7: Data de apresentação da proposta (dia/mês/ano)
A8: B | B8: Município/UF
A9: C | B9: Ano Acordo, Convenção ou Sentença Normativa em Dissídio Coletivo
A10: D | B10: No. Registro acordo convenção coletiva
A11: E | B11: Nº de meses de execução contratual | F11: 17 meses
A13: IDENTIFICAÇÃO DO SERVIÇO
A14: Unidade | B14: Tipo de Serviço | F14: Quantidade a contratar
A15: Postos | B15: Motorista | F15: -
A16: Postos | B16: Copeiro | F16: -
A17: Postos | B17: Limpeza I | F17: -
A18: Postos | B18: Limpeza II | F18: -
A19: Postos | B19: Recepcionista I | F19: -
A20: Postos | B20: Recepcionista II | F20: -
A21: Postos | B21: Auxiliar de Manutenção Predial | F21: -
A22: DADOS COMPLEMENTARES PARA CUSTOS REFERENTES À MÃO DE OBRA
A23: A | B23: Salário Normativo da categoria Profissional Vigente
A24: B | B24: Categoria profissional
A25: C | B25: Data-base da categoria
A27: MÓDULO 1 - COMPOSIÇÃO DA REMUNERAÇÃO
A28: 1 | B28: Composição da Remuneração: | F28: % | G28: Valor (R$)
A29: A | B29: Salário Base
A30: B | B30: Adicionais (especificar)
A31: *Diárias, adicionais de horas extras e noturno extra em planilha à parte
A32: Valor Total da Remuneração: | G32: =SUM(G29:G31) -> 0
A34: MÓDULO 2 - ENCARGOS SOCIAIS E TRABALHISTAS INCIDENTES SOBRE A REMUNERAÇÃO
A36: Grupo 2.1 | B36: Encargos Previdenciários e FGTS | F36: % | G36: Valor (R$)
A37: A | B37: INSS | F37: 0.2 | G37: =$G$32*F37 -> 0
A38: B | B38: SESI ou SESC | F38: 0.015 | G38: =$G$32*F38 -> 0
A39: C | B39: SENAI ou SENAC | F39: 0.01 | G39: =$G$32*F39 -> 0
A40: D | B40: INCRA | F40: 0.002 | G40: =$G$32*F40 -> 0
A41: E | B41: Salário educação | F41: 0.025 | G41: =$G$32*0.025 -> 0
A42: F | B42: FGTS | F42: 0.08 | G42: =$G$32*F42 -> 0
A43: G | B43: RAT (Risco Ambiental do Trabalho) x FAP (2,00) | F43: 0.03 | G43: =$G$32*F43 -> 0
A44: H | B44: SEBRAE | F44: 0.006 | G44: =$G$32*F44 -> 0
A45: Valor Total dos encargos previdenciários e FGTS: | F45: =SUM(F37:F44) -> 0.368 | G45: =SUM(G37:G44) -> 0
A47: Grupo 2.2 | B47: 13º Salário e Afastamentos | F47: % | G47: Valor (R$)
A48: A | B48: 13º Salário | F48: 0.08333 | G48: =SUM($G$32*F48) -> 0
A49: B | B49: Férias | F49: 0.0833 | G49: =G32*F49 -> 0
A50: C | B50: Adicional de férias (1/3) | F50: =1/3/12 -> 0.02778 | G50: =SUM($G$32*F50) -> 0
A51: D | B51: Aviso prévio trabalhado *(1) | F51: =7/30/12 -> 0.01944 | G51: =(G32)*F51 -> 0
A52: E | B52: Ausência por doença *(2) | F52: =5/30/12 -> 0.01389 | G52: =G32*F52 -> 0
A53: F | B53: Licença Paternidade *(3) | F53: =5/30/12*0.015 -> 0.00021 | G53: =G32*F53 -> 0
A54: G | B54: Ausências Legais *(4) | F54: =1/30/12 -> 0.00278 | G54: =G32*F54 -> 0
A55: H | B55: Ausência por acidente de trabalho *(5) | F55: =15/30/12*0.08 -> 0.00333 | G55: =G32*F55 -> 0
A56: J | B56: Outros (especificar) | G56: =G32*F56 -> 0
B57: Subtotal: | F57: =SUM(F48:F56) -> 0.23406 | G57: =SUM($G$32*F57) -> 0
A58: K | B58: Incidência do grupo 2.1 sobre o grupo 2.2 | F58: =F45*F57 -> 0.08613 | G58: =F58*G32 -> 0
A59: Valor total do 13º Salário e Afastamentos: | F59: =SUM(F57:F58) -> 0.32019 | G59: =G57+G58 -> 0
A61: Grupo 2.3 | B61: Afastamento Maternidade | F61: % | G61: Valor (R$)
A62: A | B62: Afastamento Maternidade *(6) | F62: =4/12*0.02 -> 0.00667 | G62: =G32*F62 -> 0
A63: B | B63: Férias sobre licença maternidade *(7) | F63: =0.1111*0.02*4/12 -> 0.00074 | G63: =G32*F63 -> 0
B64: Subtotal: | F64: =SUM(F62:F63) -> 0.00741 | G64: =SUM($G$32*F64) -> 0
A65: C | B65: Incidência do grupo 2.1 sobre o grupo 2.3 | F65: =F64*F45 -> 0.00273 | G65: =F65*G32 -> 0
A66: Valor total do Afastamento Maternidade: | F66: =SUM(F64:F65) -> 0.01014 | G66: =SUM(G64:G65) -> 0
A68: Grupo 2.4 | B68: Provisão para Rescisão | F68: % | G68: Valor (R$)
A69: A | B69: Aviso Prévio Indenizado *(8) | F69: =0.05*1/12 -> 0.00417 | G69: =($G$32)*F69 -> 0
A70: B | B70: Indenização Adicional *(9) | F70: =0.02*1/12 -> 0.00167 | G70: =($G$32)*F70 -> 0
A71: C | B71: Indenização (rescisão sem justa causa - multa de 40% do FGTS) *(10) | F71: =1*0.4*0.08 -> 0.032 | G71: =($G$32)*F71 -> 0
A72: D | B72: Indenização (rescisão sem justa causa - contribuição de 10% do FGTS) *(11) | F72: =1*0.1*0.08 -> 0.008 | G72: =($G$32)*F72 -> 0
A73: Subtotal: | F73: =SUM(F69:F72) -> 0.04584 | G73: =SUM(G69:G72) -> 0
A74: E | B74: Incidência do FGTS sobre o aviso prévio indenizado | F74: =F42*F69 -> 0.00033 | G74: =F74*$G$32 -> 0
A75: F | B75: Incidência do FGTS sobre o período médio de afastamento superior a 15 dias motivado por acidente de trabalho | F75: =F42*F55 -> 0.00027 | G75: =F75*$G$32 -> 0
A76: Valor total da Provisão para Rescisão: | F76: =SUM(F73:F75) -> 0.04644 | G76: =SUM(G73:G75) -> 0
A78: QUADRO RESUMO - ENCARGOS SOCIAIS E TRABALHISTAS
A79: 2 | B79: Encargos Sociais e Trabalhistas | F79: % | G79: Valor (R$)
A80: 2.1 | B80: Encargos Previdenciários e FGTS | F80: =F45 -> 0.368 | G80: =G45 -> 0
A81: 2.2 | B81: 13º Salário e Afastamentos | F81: =F59 -> 0.32019 | G81: =G59 -> 0
A82: 2.3 | B82: Afastamento Maternidade | F82: =F66 -> 0.01014 | G82: =G66 -> 0
A83: 2.4 | B83: Provisão para Rescisão | F83: =F76 -> 0.04644 | G83: =G76 -> 0
A84: Valor Total de encargos sociais e trabalhistas: | F84: =SUM(F80:F83) -> 0.74477 | G84: =SUM(G80:G83) -> 0
A86: MÓDULO 3 - BENEFÍCIOS MENSAIS E DIÁRIOS
A87: 3 | B87: Benefícios Mensais e Diários (deduzida parcela do empregado) | F87: % | G87: Valor (R$)
A88: A | B88: Transporte
A89: B | B89: Desconto legal sobre transporte (máximo de 6% sobre o salário base) | H89: (inserir valor negativo)
A90: C | B90: Auxílio alimentação
A91: D | B91: Assistência médica e Familiar
A92: E | B92: Auxílio creche
A93: F | B93: Seguro de vida
A94: G | B94: Auxílio Funeral
A95: H | B95: Cesta Básica
A96: I | B96: Assistência odontológica
A97: J | B97: Outros (especificar)
A98: Valor Total de benefícios mensais e diários: | G98: =SUM(G88:G97) -> 0
A100: MÓDULO 4 - INSUMOS DIVERSOS
A101: 4 | B101: Insumos Diversos | F101: % | G101: Valor (R$)
A102: A | B102: Uniformes
A103: B | B103: EPIs
A104: C | B104: Materiais
A105: D | B105: Equipamentos (ponto eletrônico, outros)
A106: D | B106: Aparelho celular
A107: F | B107: Franquia de telefonia celular
A108: G | B108: Outros (especificar)
A109: Valor Total de insumos diversos: | G109: =SUM(G102:G108) -> 0
A111: VALOR TOTAL DE REMUNERAÇÃO + ENCARGOS SOCIAIS + BENEFÍCIOS + INSUMOS | G111: =G32+G84+G98+G109 -> 0
A113: MÓDULO 5 - BONIFICAÇÃO E OUTRAS DESPESAS
A114: 5 | B114: Bonificações e outras despesas | F114: % | G114: Valor (R$)
A115: A | B115: LDI - Lucro e Despesas Indiretas | G115: =F115*$G$111 -> 0
A116: B | B116: Despesas Administrativas / Operacionais | G116: =F116*$G$111 -> 0
A117: C | B117: Outras despesas (especificar) | G117: =F117*$G$111 -> 0
A118: Valor Total de bonificações e outras despesas: | F118: =SUM(F115:F117) -> 0 | G118: =SUM(G115:G117) -> 0
A120: MÓDULO 6 - TRIBUTAÇÃO SOBRE O FATURAMENTO
A121: 6 | B121: Tributos | F121: % | G121: Valor (R$)
A122: A | B122: ISS | G122: =($G$111+$G$118)/(1-$F$125)*F122 -> 0
A123: B | B123: PIS | G123: =($G$111+$G$118)/(1-$F$125)*F123 -> 0
A124: C | B124: COFINS | G124: =($G$111+$G$118)/(1-$F$125)*F124 -> 0
A125: Valor Total dos tributos: | F125: =SUM(F122:F124) -> 0 | G125: =SUM(G122:G124) -> 0
A127: VALOR MENSAL TOTAL POR EMPREGADO | G127: =G111+G118+G125 -> 0
A129: 7 - PREVISÃO DE ADICIONAL NOTURNO E DE HORAS EXTRAS
A130: Benefício | C130: Previsão (hs) | D130: Adicional | E130: Valor Base | F130: Valor com Encargos | G130: Valor com Impostos
A132: A - Hora extra (dias úteis) | C132: 176 | D132: 0.5 | E132: =C132*(D132+1)*$G$32/220 -> 0 | F132: =E132*(1+$F$84) -> 0 | G132: =F132/(1-$F$125) -> 0
A133: B - Hora extra (repouso/feriado) | C133: 24 | D133: 1 | E133: =C133*(D133+1)/220*$G$32 -> 0 | F133: =E133*(1+$F$84) -> 0 | G133: =F133/(1-$F$125) -> 0 | J133: http://www.portaleducacao.com.br/contabilidade/artigos/51238/calculo-hora-extra-noturna
A134: C - Hora extra noturna | C134: 16 | D134: 0.2 | E134: =C134*$G$32/220*(1+D132)*(1+D134)*(1/52.5*60) -> 0 | F134: =E134*(1+$F$84) -> 0 | G134: =F134/(1-$F$125) -> 0
A135: Valor Total de Adicional Noturno e de Horas Extras: | G135: =SUM(G132:G134) -> 0
A137: QUADRO RESUMO DO VALOR MENSAL DO SERVIÇO
A138: ITEM | B138: DESCRIÇÃO | E138: QUANT. DE EMPREGADO PARA O SERVIÇO | F138: VALOR PROPOSTO POR EMPREGADO | G138: VALOR TOTAL DO SERVIÇO
F139: =G127 -> 0 | G139: =F139*E139 -> 0 | H139: *Valor Mensal sem horas extras
A140: VALOR DO SERVIÇO ANUAL | G140: =G139*12 -> 0
A142: VALOR TOTAL CONTRATUAL PREVISTO DO SERVIÇO COM HORAS EXTRAS E NOTURNAS | G142: =(G135+G140)*17/12 -> 0 | H142: *VALOR APROXIMADO PARA OS 17 MESES PREVISTOS (Do dia 29 de Setembro até o encerramento do contrato)
A144: *(1) Redução de 7 dias ou de 2h por dia. (Percentual relativo a contrato de 12 meses
A145: *(2) Estimativa de 5 dias de licença por ano
A146: *(3) Estimativa de 1,5% dos funcionários usufruindo 5 dias de licença por ano
A147: *(4) Estimativa de 1 ausência por ano
A148: *(5) Estimativa de 1 licença de 15 dias por ano para 8% dos funcionários
A149: *(6) Estimativa de 2% dos funcionários usufruindo de 4 meses de licença por ano
A150: *(7) Estimativa de 2% dos funcionários usufruindo de 4 meses de licença por ano
A151: *(8) Estimativa de que 5% dos funcionários serão substituídos em um ano.
A152: *(9) Estimativa de que 2% dos funcionários serão demitidos com indenização adicional.
A153: *(10) Multa de 40% do FGTS em relação aos trabalhadores contratados.
A154: *(11) Contribuição de 10% do FGTS em relação aos trabalhadores contratados.

Sheet IV - Limpeza II
A1: PLANILHA DE CUSTOS E FORMAÇÃO DE PREÇOS
A2: PRESTAÇÃO DE SERVIÇOS DE LIMPEZA II
A3: ='I - Motorista'!A3:G3 -> Razão Social: | H3: *Preenchimento automático
A4: ='I - Motorista'!A4:D4 -> CNPJ: | D4: ='I - Motorista'!E4 -> Pregão n°: | F4: ='I - Motorista'!F4:G4 -> Data: | H4: *Preenchimento automático
A6: DISCRIMINAÇÃO DOS SERVIÇOS
A7: A | B7: Data de apresentação da proposta (dia/mês/ano)
A8: B | B8: Município/UF
A9: C | B9: Ano Acordo, Convenção ou Sentença Normativa em Dissídio Coletivo
A10: D | B10: No. Registro acordo convenção coletiva
A11: E | B11: Nº de meses de execução contratual | F11: 17 meses
A13: IDENTIFICAÇÃO DO SERVIÇO
A14: Unidade | B14: Tipo de Serviço | F14: Quantidade a contratar
A15: Postos | B15: Motorista | F15: -
A16: Postos | B16: Copeiro | F16: -
A17: Postos | B17: Limpeza I | F17: -
A18: Postos | B18: Limpeza II | F18: -
A19: Postos | B19: Recepcionista I | F19: -
A20: Postos | B20: Recepcionista II | F20: -
A21: Postos | B21: Auxiliar de Manutenção Predial | F21: -
A22: DADOS COMPLEMENTARES PARA CUSTOS REFERENTES À MÃO DE OBRA
A23: A | B23: Salário Normativo da categoria Profissional Vigente
A24: B | B24: Categoria profissional
A25: C | B25: Data-base da categoria
A27: MÓDULO 1 - COMPOSIÇÃO DA REMUNERAÇÃO
A28: 1 | B28: Composição da Remuneração: | F28: % | G28: Valor (R$)
A29: A | B29: Salário Base | H29: Adicionar 40% de Insalubridade nos termos da Súmula 448 do TST.
A30: B | B30: Adicionais (especificar) | F30: 0.4 | G30: =G29*F30 -> 0
A31: *Diárias, adicionais de horas extras e noturno extra em planilha à parte
A32: Valor Total da Remuneração: | G32: =SUM(G29:G31) -> 0
A34: MÓDULO 2 - ENCARGOS SOCIAIS E TRABALHISTAS INCIDENTES SOBRE A REMUNERAÇÃO
A36: Grupo 2.1 | B36: Encargos Previdenciários e FGTS | F36: % | G36: Valor (R$)
A37: A | B37: INSS | F37: 0.2 | G37: =$G$32*F37 -> 0
A38: B | B38: SESI ou SESC | F38: 0.015 | G38: =$G$32*F38 -> 0
A39: C | B39: SENAI ou SENAC | F39: 0.01 | G39: =$G$32*F39 -> 0
A40: D | B40: INCRA | F40: 0.002 | G40: =$G$32*F40 -> 0
A41: E | B41: Salário educação | F41: 0.025 | G41: =$G$32*0.025 -> 0
A42: F | B42: FGTS | F42: 0.08 | G42: =$G$32*F42 -> 0
A43: G | B43: RAT (Risco Ambiental do Trabalho) x FAP (2,00) | F43: 0.03 | G43: =$G$32*F43 -> 0
A44: H | B44: SEBRAE | F44: 0.006 | G44: =$G$32*F44 -> 0
A45: Valor Total dos encargos previdenciários e FGTS: | F45: =SUM(F37:F44) -> 0.368 | G45: =SUM(G37:G44) -> 0
A47: Grupo 2.2 | B47: 13º Salário e Afastamentos | F47: % | G47: Valor (R$)
A48: A | B48: 13º Salário | F48: 0.08333 | G48: =SUM($G$32*F48) -> 0
A49: B | B49: Férias | F49: 0.0833 | G49: =G32*F49 -> 0
A50: C | B50: Adicional de férias (1/3) | F50: =1/3/12 -> 0.02778 | G50: =SUM($G$32*F50) -> 0
A51: D | B51: Aviso prévio trabalhado *(1) | F51: =7/30/12 -> 0.01944 | G51: =(G32)*F51 -> 0
A52: E | B52: Ausência por doença *(2) | F52: =5/30/12 -> 0.01389 | G52: =G32*F52 -> 0
A53: F | B53: Licença Paternidade *(3) | F53: =5/30/12*0.015 -> 0.00021 | G53: =G32*F53 -> 0
A54: G | B54: Ausências Legais *(4) | F54: =1/30/12 -> 0.00278 | G54: =G32*F54 -> 0
A55: H | B55: Ausência por acidente de trabalho *(5) | F55: =15/30/12*0.08 -> 0.00333 | G55: =G32*F55 -> 0
A56: J | B56: Outros (especificar) | G56: =G32*F56 -> 0
B57: Subtotal: | F57: =SUM(F48:F56) -> 0.23406 | G57: =SUM($G$32*F57) -> 0
A58: K | B58: Incidência do grupo 2.1 sobre o grupo 2.2 | F58: =F45*F57 -> 0.08613 | G58: =F58*G32 -> 0
A59: Valor total do 13º Salário e Afastamentos: | F59: =SUM(F57:F58) -> 0.32019 | G59: =G57+G58 -> 0
A61: Grupo 2.3 | B61: Afastamento Maternidade | F61: % | G61: Valor (R$)
A62: A | B62: Afastamento Maternidade *(6) | F62: =4/12*0.02 -> 0.00667 | G62: =G32*F62 -> 0
A63: B | B63: Férias sobre licença maternidade *(7) | F63: =0.1111*0.02*4/12 -> 0.00074 | G63: =G32*F63 -> 0
B64: Subtotal: | F64: =SUM(F62:F63) -> 0.00741 | G64: =SUM($G$32*F64) -> 0
A65: C | B65: Incidência do grupo 2.1 sobre o grupo 2.3 | F65: =F64*F45 -> 0.00273 | G65: =F65*G32 -> 0
A66: Valor total do Afastamento Maternidade: | F66: =SUM(F64:F65) -> 0.01014 | G66: =SUM(G64:G65) -> 0
A68: Grupo 2.4 | B68: Provisão para Rescisão | F68: % | G68: Valor (R$)
A69: A | B69: Aviso Prévio Indenizado *(8) | F69: =0.05*1/12 -> 0.00417 | G69: =($G$32)*F69 -> 0
A70: B | B70: Indenização Adicional *(9) | F70: =0.02*1/12 -> 0.00167 | G70: =($G$32)*F70 -> 0
A71: C | B71: Indenização (rescisão sem justa causa - multa de 40% do FGTS) *(10) | F71: =1*0.4*0.08 -> 0.032 | G71: =($G$32)*F71 -> 0
A72: D | B72: Indenização (rescisão sem justa causa - contribuição de 10% do FGTS) *(11) | F72: =1*0.1*0.08 -> 0.008 | G72: =($G$32)*F72 -> 0
A73: Subtotal: | F73: =SUM(F69:F72) -> 0.04584 | G73: =SUM(G69:G72) -> 0
A74: E | B74: Incidência do FGTS sobre o aviso prévio indenizado | F74: =F42*F69 -> 0.00033 | G74: =F74*$G$32 -> 0
A75: F | B75: Incidência do FGTS sobre o período médio de afastamento superior a 15 dias motivado por acidente de trabalho | F75: =F42*F55 -> 0.00027 | G75: =F75*$G$32 -> 0
A76: Valor total da Provisão para Rescisão: | F76: =SUM(F73:F75) -> 0.04644 | G76: =SUM(G73:G75) -> 0
A78: QUADRO RESUMO - ENCARGOS SOCIAIS E TRABALHISTAS
A79: 2 | B79: Encargos Sociais e Trabalhistas | F79: % | G79: Valor (R$)
A80: 2.1 | B80: Encargos Previdenciários e FGTS | F80: =F45 -> 0.368 | G80: =G45 -> 0
A81: 2.2 | B81: 13º Salário e Afastamentos | F81: =F59 -> 0.32019 | G81: =G59 -> 0
A82: 2.3 | B82: Afastamento Maternidade | F82: =F66 -> 0.01014 | G82: =G66 -> 0
A83: 2.4 | B83: Provisão para Rescisão | F83: =F76 -> 0.04644 | G83: =G76 -> 0
A84: Valor Total de encargos sociais e trabalhistas: | F84: =SUM(F80:F83) -> 0.74477 | G84: =SUM(G80:G83) -> 0
A86: MÓDULO 3 - BENEFÍCIOS MENSAIS E DIÁRIOS
A87: 3 | B87: Benefícios Mensais e Diários (deduzida parcela do empregado) | F87: % | G87: Valor (R$)
A88: A | B88: Transporte
A89: B | B89: Desconto legal sobre transporte (máximo de 6% sobre o salário base) | H89: (inserir valor negativo)
A90: C | B90: Auxílio alimentação
A91: D | B91: Assistência médica e Familiar
A92: E | B92: Auxílio creche
A93: F | B93: Seguro de vida
A94: G | B94: Auxílio Funeral
A95: H | B95: Cesta Básica
A96: I | B96: Assistência odontológica
A97: J | B97: Outros (especificar)
A98: Valor Total de benefícios mensais e diários: | G98: =SUM(G88:G97) -> 0
A100: MÓDULO 4 - INSUMOS DIVERSOS
A101: 4 | B101: Insumos Diversos | F101: % | G101: Valor (R$)
A102: A | B102: Uniformes
A103: B | B103: EPIs
A104: C | B104: Materiais
A105: D | B105: Equipamentos (ponto eletrônico, outros)
A106: D | B106: Aparelho celular
A107: F | B107: Franquia de telefonia celular
A108: G | B108: Outros (especificar)
A109: Valor Total de insumos diversos: | G109: =SUM(G102:G108) -> 0
A111: VALOR TOTAL DE REMUNERAÇÃO + ENCARGOS SOCIAIS + BENEFÍCIOS + INSUMOS | G111: =G32+G84+G98+G109 -> 0
A113: MÓDULO 5 - BONIFICAÇÃO E OUTRAS DESPESAS
A114: 5 | B114: Bonificações e outras despesas | F114: % | G114: Valor (R$)
A115: A | B115: LDI - Lucro e Despesas Indiretas | G115: =F115*$G$111 -> 0
A116: B | B116: Despesas Administrativas / Operacionais | G116: =F116*$G$111 -> 0
A117: C | B117: Outras despesas (especificar) | G117: =F117*$G$111 -> 0
A118: Valor Total de bonificações e outras despesas: | F118: =SUM(F115:F117) -> 0 | G118: =SUM(G115:G117) -> 0
A120: MÓDULO 6 - TRIBUTAÇÃO SOBRE O FATURAMENTO
A121: 6 | B121: Tributos | F121: % | G121: Valor (R$)
A122: A | B122: ISS | G122: =($G$111+$G$118)/(1-$F$125)*F122 -> 0
A123: B | B123: PIS | G123: =($G$111+$G$118)/(1-$F$125)*F123 -> 0
A124: C | B124: COFINS | G124: =($G$111+$G$118)/(1-$F$125)*F124 -> 0
A125: Valor Total dos tributos: | F125: =SUM(F122:F124) -> 0 | G125: =SUM(G122:G124) -> 0
A127: VALOR MENSAL TOTAL POR EMPREGADO | G127: =G111+G118+G125 -> 0
A129: 7 - PREVISÃO DE ADICIONAL NOTURNO E DE HORAS EXTRAS
A130: Benefício | C130: Previsão (hs) | D130: Adicional | E130: Valor Base | F130: Valor com Encargos | G130: Valor com Impostos
A132: A - Hora extra (dias úteis) | C132: 44 | D132: 0.5 | E132: =C132*(D132+1)*$G$32/220 -> 0 | F132: =E132*(1+$F$84) -> 0 | G132: =F132/(1-$F$125) -> 0
A133: B - Hora extra (repouso/feriado) | C133: 6 | D133: 1 | E133: =C133*(D133+1)/220*$G$32 -> 0 | F133: =E133*(1+$F$84) -> 0 | G133: =F133/(1-$F$125) -> 0 | J133: http://www.portaleducacao.com.br/contabilidade/artigos/51238/calculo-hora-extra-noturna
A134: C - Hora extra noturna | C134: 4 | D134: 0.2 | E134: =C134*$G$32/220*(1+D132)*(1+D134)*(1/52.5*60) -> 0 | F134: =E134*(1+$F$84) -> 0 | G134: =F134/(1-$F$125) -> 0
A135: Valor Total de Adicional Noturno e de Horas Extras: | G135: =SUM(G132:G134) -> 0
A137: QUADRO RESUMO DO VALOR MENSAL DO SERVIÇO
A138: ITEM | B138: DESCRIÇÃO | E138: QUANT. DE EMPREGADO PARA O SERVIÇO | F138: VALOR PROPOSTO POR EMPREGADO | G138: VALOR TOTAL DO SERVIÇO
F139: =G127 -> 0 | G139: =F139*E139 -> 0 | H139: *Valor Mensal sem horas extras
A140: VALOR DO SERVIÇO ANUAL | G140: =G139*12 -> 0
A142: VALOR TOTAL CONTRATUAL PREVISTO DO SERVIÇO COM HORAS EXTRAS E NOTURNAS | G142: =(G135+G140)*17/12 -> 0 | H142: *VALOR APROXIMADO PARA OS 17 MESES PREVISTOS (Do dia 29 de Setembro até o encerramento do contrato)
A144: *(1) Redução de 7 dias ou de 2h por dia. (Percentual relativo a contrato de 12 meses
A145: *(2) Estimativa de 5 dias de licença por ano
A146: *(3) Estimativa de 1,5% dos funcionários usufruindo 5 dias de licença por ano
A147: *(4) Estimativa de 1 ausência por ano
A148: *(5) Estimativa de 1 licença de 15 dias por ano para 8% dos funcionários
A149: *(6) Estimativa de 2% dos funcionários usufruindo de 4 meses de licença por ano
A150: *(7) Estimativa de 2% dos funcionários usufruindo de 4 meses de licença por ano
A151: *(8) Estimativa de que 5% dos funcionários serão substituídos em um ano.
A152: *(9) Estimativa de que 2% dos funcionários serão demitidos com indenização adicional.
A153: *(10) Multa de 40% do FGTS em relação aos trabalhadores contratados.
A154: *(11) Contribuição de 10% do FGTS em relação aos trabalhadores contratados.

Sheet V- Recepção I
A1: PLANILHA DE CUSTOS E FORMAÇÃO DE PREÇOS
A2: PRESTAÇÃO DE SERVIÇOS DE RECEPÇÃO I
A3: ='I - Motorista'!A3:G3 -> Razão Social: | H3: *Preenchimento automático
A4: ='I - Motorista'!A4:D4 -> CNPJ: | D4: ='I - Motorista'!E4 -> Pregão n°: | F4: ='I - Motorista'!F4:G4 -> Data: | H4: *Preenchimento automático
A6: DISCRIMINAÇÃO DOS SERVIÇOS
A7: A | B7: Data de apresentação da proposta (dia/mês/ano)
A8: B | B8: Município/UF
A9: C | B9: Ano Acordo, Convenção ou Sentença Normativa em Dissídio Coletivo
A10: D | B10: No. Registro acordo convenção coletiva
A11: E | B11: Nº de meses de execução contratual | F11: 24 meses
A13: IDENTIFICAÇÃO DO SERVIÇO
A14: Unidade | B14: Tipo de Serviço | F14: Quantidade a contratar
A15: Postos | B15: Motorista | F15: -
A16: Postos | B16: Copeiro | F16: -
A17: Postos | B17: Limpeza I | F17: -
A18: Postos | B18: Limpeza II | F18: -
A19: Postos | B19: Recepcionista I | F19: -
A20: Postos | B20: Recepcionista II | F20: -
A21: Postos | B21: Auxiliar de Manutenção Predial | F21: -
A22: DADOS COMPLEMENTARES PARA CUSTOS REFERENTES À MÃO DE OBRA
A23: A | B23: Salário Normativo da categoria Profissional Vigente | H23: Poderá ser considerado o salário proporcional à carga horária
A24: B | B24: Categoria profissional
A25: C | B25: Data-base da categoria
A27: MÓDULO 1 - COMPOSIÇÃO DA REMUNERAÇÃO
A28: 1 | B28: Composição da Remuneração: | F28: % | G28: Valor (R$)
A29: A | B29: Salário Base
A30: B | B30: Adicionais (especificar)
A31: *Diárias, adicionais de horas extras e noturno extra em planilha à parte
A32: Valor Total da Remuneração: | G32: =SUM(G29:G31) -> 0
A34: MÓDULO 2 - ENCARGOS SOCIAIS E TRABALHISTAS INCIDENTES SOBRE A REMUNERAÇÃO
A36: Grupo 2.1 | B36: Encargos Previdenciários e FGTS | F36: % | G36: Valor (R$)
A37: A | B37: INSS | F37: 0.2 | G37: =$G$32*F37 -> 0
A38: B | B38: SESI ou SESC | F38: 0.015 | G38: =$G$32*F38 -> 0
A39: C | B39: SENAI ou SENAC | F39: 0.01 | G39: =$G$32*F39 -> 0
A40: D | B40: INCRA | F40: 0.002 | G40: =$G$32*F40 -> 0
A41: E | B41: Salário educação | F41: 0.025 | G41: =$G$32*0.025 -> 0
A42: F | B42: FGTS | F42: 0.08 | G42: =$G$32*F42 -> 0
A43: G | B43: RAT (Risco Ambiental do Trabalho) x FAP (2,00) | F43: 0.03 | G43: =$G$32*F43 -> 0
A44: H | B44: SEBRAE | F44: 0.006 | G44: =$G$32*F44 -> 0
A45: Valor Total dos encargos previdenciários e FGTS: | F45: =SUM(F37:F44) -> 0.368 | G45: =SUM(G37:G44) -> 0
A47: Grupo 2.2 | B47: 13º Salário e Afastamentos | F47: % | G47: Valor (R$)
A48: A | B48: 13º Salário | F48: 0.08333 | G48: =SUM($G$32*F48) -> 0
A49: B | B49: Férias | F49: 0.0833 | G49: =G32*F49 -> 0
A50: C | B50: Adicional de férias (1/3) | F50: =1/3/12 -> 0.02778 | G50: =SUM($G$32*F50) -> 0
A51: D | B51: Aviso prévio trabalhado *(1) | F51: =7/30/12 -> 0.01944 | G51: =(G32)*F51 -> 0
A52: E | B52: Ausência por doença *(2) | F52: =5/30/12 -> 0.01389 | G52: =G32*F52 -> 0
A53: F | B53: Licença Paternidade *(3) | F53: =5/30/12*0.015 -> 0.00021 | G53: =G32*F53 -> 0
A54: G | B54: Ausências Legais *(4) | F54: =1/30/12 -> 0.00278 | G54: =G32*F54 -> 0
A55: H | B55: Ausência por acidente de trabalho *(5) | F55: =15/30/12*0.08 -> 0.00333 | G55: =G32*F55 -> 0
A56: J | B56: Outros (especificar) | G56: =G32*F56 -> 0
B57: Subtotal: | F57: =SUM(F48:F56) -> 0.23406 | G57: =SUM($G$32*F57) -> 0
A58: K | B58: Incidência do grupo 2.1 sobre o grupo 2.2 | F58: =F45*F57 -> 0.08613 | G58: =F58*G32 -> 0
A59: Valor total do 13º Salário e Afastamentos: | F59: =SUM(F57:F58) -> 0.32019 | G59: =G57+G58 -> 0
A61: Grupo 2.3 | B61: Afastamento Maternidade | F61: % | G61: Valor (R$)
A62: A | B62: Afastamento Maternidade *(6) | F62: =4/12*0.02 -> 0.00667 | G62: =G32*F62 -> 0
A63: B | B63: Férias sobre licença maternidade *(7) | F63: =0.1111*0.02*4/12 -> 0.00074 | G63: =G32*F63 -> 0
B64: Subtotal: | F64: =SUM(F62:F63) -> 0.00741 | G64: =SUM($G$32*F64) -> 0
A65: C | B65: Incidência do grupo 2.1 sobre o grupo 2.3 | F65: =F64*F45 -> 0.00273 | G65: =F65*G32 -> 0
A66: Valor total do Afastamento Maternidade: | F66: =SUM(F64:F65) -> 0.01014 | G66: =SUM(G64:G65) -> 0
A68: Grupo 2.4 | B68: Provisão para Rescisão | F68: % | G68: Valor (R$)
A69: A | B69: Aviso Prévio Indenizado *(8) | F69: =0.05*1/12 -> 0.00417 | G69: =($G$32)*F69 -> 0
A70: B | B70: Indenização Adicional *(9) | F70: =0.02*1/12 -> 0.00167 | G70: =($G$32)*F70 -> 0
A71: C | B71: Indenização (rescisão sem justa causa - multa de 40% do FGTS) *(10) | F71: =1*0.4*0.08 -> 0.032 | G71: =($G$32)*F71 -> 0
A72: D | B72: Indenização (rescisão sem justa causa - contribuição de 10% do FGTS) *(11) | F72: =1*0.1*0.08 -> 0.008 | G72: =($G$32)*F72 -> 0
A73: Subtotal: | F73: =SUM(F69:F72) -> 0.04584 | G73: =SUM(G69:G72) -> 0
A74: E | B74: Incidência do FGTS sobre o aviso prévio indenizado | F74: =F42*F69 -> 0.00033 | G74: =F74*$G$32 -> 0
A75: F | B75: Incidência do FGTS sobre o período médio de afastamento superior a 15 dias motivado por acidente de trabalho | F75: =F42*F55 -> 0.00027 | G75: =F75*$G$32 -> 0
A76: Valor total da Provisão para Rescisão: | F76: =SUM(F73:F75) -> 0.04644 | G76: =SUM(G73:G75) -> 0
A78: QUADRO RESUMO - ENCARGOS SOCIAIS E TRABALHISTAS
A79: 2 | B79: Encargos Sociais e Trabalhistas | F79: % | G79: Valor (R$)
A80: 2.1 | B80: Encargos Previdenciários e FGTS | F80: =F45 -> 0.368 | G80: =G45 -> 0
A81: 2.2 | B81: 13º Salário e Afastamentos | F81: =F59 -> 0.32019 | G81: =G59 -> 0
A82: 2.3 | B82: Afastamento Maternidade | F82: =F66 -> 0.01014 | G82: =G66 -> 0
A83: 2.4 | B83: Provisão para Rescisão | F83: =F76 -> 0.04644 | G83: =G76 -> 0
A84: Valor Total de encargos sociais e trabalhistas: | F84: =SUM(F80:F83) -> 0.74477 | G84: =SUM(G80:G83) -> 0
A86: MÓDULO 3 - BENEFÍCIOS MENSAIS E DIÁRIOS
A87: 3 | B87: Benefícios Mensais e Diários (deduzida parcela do empregado) | F87: % | G87: Valor (R$)
A88: A | B88: Transporte
A89: B | B89: Desconto legal sobre transporte (máximo de 6% sobre o salário base) | H89: (inserir valor negativo)
A90: C | B90: Auxílio alimentação
A91: D | B91: Assistência médica e Familiar
A92: E | B92: Auxílio creche
A93: F | B93: Seguro de vida
A94: G | B94: Auxílio Funeral
A95: H | B95: Cesta Básica
A96: I | B96: Assistência odontológica
A97: J | B97: Outros (especificar)
A98: Valor Total de benefícios mensais e diários: | G98: =SUM(G88:G97) -> 0
A100: MÓDULO 4 - INSUMOS DIVERSOS
A101: 4 | B101: Insumos Diversos | F101: % | G101: Valor (R$)
A102: A | B102: Uniformes
A103: B | B103: EPIs
A104: C | B104: Materiais
A105: D | B105: Equipamentos (ponto eletrônico, outros)
A106: D | B106: Aparelho celular
A107: F | B107: Franquia de telefonia celular
A108: G | B108: Outros (especificar)
A109: Valor Total de insumos diversos: | G109: =SUM(G102:G108) -> 0
A111: VALOR TOTAL DE REMUNERAÇÃO + ENCARGOS SOCIAIS + BENEFÍCIOS + INSUMOS | G111: =G32+G84+G98+G109 -> 0
A113: MÓDULO 5 - BONIFICAÇÃO E OUTRAS DESPESAS
A114: 5 | B114: Bonificações e outras despesas | F114: % | G114: Valor (R$)
A115: A | B115: LDI - Lucro e Despesas Indiretas | G115: =F115*$G$111 -> 0
A116: B | B116: Despesas Administrativas / Operacionais | G116: =F116*$G$111 -> 0
A117: C | B117: Outras despesas (especificar) | G117: =F117*$G$111 -> 0
A118: Valor Total de bonificações e outras despesas: | F118: =SUM(F115:F117) -> 0 | G118: =SUM(G115:G117) -> 0
A120: MÓDULO 6 - TRIBUTAÇÃO SOBRE O FATURAMENTO
A121: 6 | B121: Tributos | F121: % | G121: Valor (R$)
A122: A | B122: ISS | G122: =($G$111+$G$118)/(1-$F$125)*F122 -> 0
A123: B | B123: PIS | G123: =($G$111+$G$118)/(1-$F$125)*F123 -> 0
A124: C | B124: COFINS | G124: =($G$111+$G$118)/(1-$F$125)*F124 -> 0
A125: Valor Total dos tributos: | F125: =SUM(F122:F124) -> 0 | G125: =SUM(G122:G124) -> 0
A127: VALOR MENSAL TOTAL POR EMPREGADO | G127: =G111+G118+G125 -> 0
A129: 7 - PREVISÃO DE ADICIONAL NOTURNO E DE HORAS EXTRAS
A130: Benefício | C130: Previsão (hs) | D130: Adicional | E130: Valor Base | F130: Valor com Encargos | G130: Valor com Impostos
J131: http://www.portaleducacao.com.br/contabilidade/artigos/51238/calculo-hora-extra-noturna
A132: A - Hora extra (dias úteis) | C132: 230 | D132: 0.5 | E132: =C132*(D132+1)*$G$32/180 -> 0 | F132: =E132*(1+$F$84) -> 0 | G132: =F132/(1-$F$125) -> 0
A133: B - Hora extra (repouso/feriado) | C133: 36 | D133: 1 | E133: =C133*(D133+1)/180*$G$32 -> 0 | F133: =E133*(1+$F$84) -> 0 | G133: =F133/(1-$F$125) -> 0
A134: C - Hora extra noturna | C134: 24 | D134: 0.2 | E134: =C134*$G$32/180*(1+D132)*(1+D134)*(1/52.5*60) -> 0 | F134: =E134*(1+$F$84) -> 0 | G134: =F134/(1-$F$125) -> 0
A135: Valor Total de Adicional Noturno e de Horas Extras: | G135: =SUM(G132:G134) -> 0
A137: QUADRO RESUMO DO VALOR MENSAL DO SERVIÇO
A138: ITEM | B138: DESCRIÇÃO | E138: QUANT. DE EMPREGADO PARA O SERVIÇO | F138: VALOR PROPOSTO POR EMPREGADO | G138: VALOR TOTAL DO SERVIÇO
E139: - | F139: =G127 -> 0 | G139: =F139*E139 ->  | H139: *Valor Mensal sem horas extras
A140: VALOR DO SERVIÇO ANUAL | G140: =G139*12 -> 
A142: VALOR TOTAL BIENAL DO SERVIÇO COM HORAS EXTRAS E NOTURNAS | G142: =(G135+G140)*2 -> 
A144: *(1) Redução de 7 dias ou de 2h por dia. (Percentual relativo a contrato de 12 meses
A145: *(2) Estimativa de 5 dias de licença por ano
A146: *(3) Estimativa de 1,5% dos funcionários usufruindo 5 dias de licença por ano
A147: *(4) Estimativa de 1 ausência por ano
A148: *(5) Estimativa de 1 licença de 15 dias por ano para 8% dos funcionários
A149: *(6) Estimativa de 2% dos funcionários usufruindo de 4 meses de licença por ano
A150: *(7) Estimativa de 2% dos funcionários usufruindo de 4 meses de licença por ano
A151: *(8) Estimativa de que 5% dos funcionários serão substituídos em um ano.
A152: *(9) Estimativa de que 2% dos funcionários serão demitidos com indenização adicional.
A153: *(10) Multa de 40% do FGTS em relação aos trabalhadores contratados.
A154: *(11) Contribuição de 10% do FGTS em relação aos trabalhadores contratados.

Sheet V-Preposto (hidden)
A1: PLANILHA DE CUSTOS E FORMAÇÃO DE PREÇOS
A2: PRESTAÇÃO DE SERVIÇOS DE COPEIRAGEM E CHOFERAGEM
A3: LOTE e DESCRIÇÃO:
A4: Processo nº: | E4: Pregão n°: | F4: Data:
A6: DISCRIMINAÇÃO DOS SERVIÇOS
A7: A | B7: Data de apresentação da proposta (dia/mês/ano)
A8: B | B8: Município/UF
A9: C | B9: Ano Acordo, Convenção ou Sentença Normativa em Dissídio Coletivo
A10: D | B10: No. Registro acordo convenção coletiva
A11: E | B11: Nº de meses de execução contratual | F11: 12 meses
A13: IDENTIFICAÇÃO DO SERVIÇO
A14: Unidade | B14: Tipo de Serviço | F14: Quantidade a contratar
A15: Postos | B15: Copeiragem | F15: -
A16: Postos | B16: Choferagem | F16: -
A17: Postos | B17: Preposto | F17: 1
A18: Postos
A19: DADOS COMPLEMENTARES PARA CUSTOS REFERENTES À MÃO DE OBRA
A20: A | B20: Salário Normativo da categoria Profissional Vigente
A21: B | B21: Categoria profissional | F21: Motorista Executivo
A22: C | B22: Data-base da categoria
A24: MÓDULO 1 - COMPOSIÇÃO DA REMUNERAÇÃO
A25: 1 | B25: Composição da Remuneração: | F25: % | G25: Valor (R$)
A26: A | B26: Salário Base
A27: B | B27: Adicionais (especificar)
A28: *Diárias, adicionais de horas extras e noturno em planilha à parte
A29: Valor Total da Remuneração: | G29: =SUM(G26:G28) -> 0
A31: MÓDULO 2 - ENCARGOS SOCIAIS E TRABALHISTAS INCIDENTES SOBRE A REMUNERAÇÃO
A33: Grupo 2.1 | B33: Encargos Previdenciários e FGTS | F33: % | G33: Valor (R$)
A34: A | B34: INSS | F34: 0.2 | G34: =$G$29*F34 -> 0
A35: B | B35: SESI ou SESC | F35: 0.015 | G35: =$G$29*F35 -> 0
A36: C | B36: SENAI ou SENAC | F36: 0.01 | G36: =$G$29*F36 -> 0
A37: D | B37: INCRA | F37: 0.002 | G37: =$G$29*F37 -> 0
A38: E | B38: Salário educação | F38: 0.025 | G38: =$G$29*0.025 -> 0
A39: F | B39: FGTS | F39: 0.08 | G39: =$G$29*F39 -> 0
A40: G | B40: RAT (Risco Ambiental do Trabalho) x FAP (2,00) | F40: 0.03 | G40: =$G$29*F40 -> 0
A41: H | B41: SEBRAE | F41: 0.006 | G41: =$G$29*F41 -> 0
A42: Valor Total dos encargos previdenciários e FGTS: | F42: =SUM(F34:F41) -> 0.368 | G42: =SUM(G34:G41) -> 0
A44: Grupo 2.2 | B44: 13º Salário e Afastamentos | F44: % | G44: Valor (R$)
A45: A | B45: 13º Salário | F45: 0.08333 | G45: =SUM($G$29*F45) -> 0
A46: B | B46: Férias | F46: 0.0833 | G46: =G29*F46 -> 0
A47: C | B47: Adicional de férias (1/3) | F47: =1/3/12 -> 0.02778 | G47: =SUM($G$29*F47) -> 0
A48: D | B48: Aviso prévio trabalhado *(1) | F48: =7/30/12 -> 0.01944 | G48: =(G29)*F48 -> 0
A49: E | B49: Ausência por doença *(2) | F49: =5/30/12 -> 0.01389 | G49: =G29*F49 -> 0
A50: F | B50: Licença Paternidade *(3) | F50: =5/30/12*0.015 -> 0.00021 | G50: =G29*F50 -> 0
A51: G | B51: Ausências Legais *(4) | F51: =1/30/12 -> 0.00278 | G51: =G29*F51 -> 0
A52: H | B52: Ausência por acidente de trabalho *(5) | F52: =15/30/12*0.08 -> 0.00333 | G52: =G29*F52 -> 0
A53: J | B53: Outros (especificar) | G53: =G29*F53 -> 0
B54: Subtotal: | F54: =SUM(F45:F53) -> 0.23406 | G54: =SUM($G$29*F54) -> 0
A55: K | B55: Incidência do grupo 2.1 sobre o grupo 2.2 | F55: =F42*F54 -> 0.08613 | G55: =F55*G29 -> 0
A56: Valor total do 13º Salário e Afastamentos: | F56: =SUM(F54:F55) -> 0.32019 | G56: =G54+G55 -> 0
A58: Grupo 2.3 | B58: Afastamento Maternidade | F58: % | G58: Valor (R$)
A59: A | B59: Afastamento Maternidade *(6) | F59: =4/12*0.02 -> 0.00667 | G59: =G29*F59 -> 0
A60: B | B60: Férias sobre licença maternidade *(7) | F60: =0.1111*0.02*4/12 -> 0.00074 | G60: =G29*F60 -> 0
B61: Subtotal: | F61: =SUM(F59:F60) -> 0.00741 | G61: =SUM($G$29*F61) -> 0
A62: C | B62: Incidência do grupo 2.1 sobre o grupo 2.3 | F62: =F61*F42 -> 0.00273 | G62: =F62*G29 -> 0
A63: Valor total do Afastamento Maternidade: | F63: =SUM(F61:F62) -> 0.01014 | G63: =SUM(G61:G62) -> 0
A65: Grupo 2.4 | B65: Provisão para Rescisão | F65: % | G65: Valor (R$)
A66: A | B66: Aviso Prévio Indenizado *(8) | F66: =0.05*1/12 -> 0.00417 | G66: =($G$29)*F66 -> 0
A67: B | B67: Indenização Adicional *(9) | F67: =0.02*1/12 -> 0.00167 | G67: =($G$29)*F67 -> 0
A68: C | B68: Indenização (rescisão sem justa causa - multa de 40% do FGTS) *(10) | F68: =1*0.4*0.08 -> 0.032 | G68: =($G$29)*F68 -> 0
A69: D | B69: Indenização (rescisão sem justa causa - contribuição de 10% do FGTS) *(11) | F69: =1*0.1*0.08 -> 0.008 | G69: =($G$29)*F69 -> 0
A70: Subtotal: | F70: =SUM(F66:F69) -> 0.04584 | G70: =SUM(G66:G69) -> 0
A71: E | B71: Incidência do FGTS sobre o aviso prévio indenizado | F71: =F39*F66 -> 0.00033 | G71: =F71*$G$29 -> 0
A72: F | B72: Incidência do FGTS sobre o período médio de afastamento superior a 15 dias motivado por acidente de trabalho | F72: =F39*F52 -> 0.00027 | G72: =F72*$G$29 -> 0
A73: Valor total da Provisão para Rescisão: | F73: =SUM(F70:F72) -> 0.04644 | G73: =SUM(G70:G72) -> 0
A75: QUADRO RESUMO - ENCARGOS SOCIAIS E TRABALHISTAS
A76: 2 | B76: Encargos Sociais e Trabalhistas | F76: % | G76: Valor (R$)
A77: 2.1 | B77: Encargos Previdenciários e FGTS | F77: =F42 -> 0.368 | G77: =G42 -> 0
A78: 2.2 | B78: 13º Salário e Afastamentos | F78: =F56 -> 0.32019 | G78: =G56 -> 0
A79: 2.3 | B79: Afastamento Maternidade | F79: =F63 -> 0.01014 | G79: =G63 -> 0
A80: 2.4 | B80: Provisão para Rescisão | F80: =F73 -> 0.04644 | G80: =G73 -> 0
A81: Valor Total de encargos sociais e trabalhistas: | F81: =SUM(F77:F80) -> 0.74477 | G81: =SUM(G77:G80) -> 0
A83: MÓDULO 3 - BENEFÍCIOS MENSAIS E DIÁRIOS
A84: 3 | B84: Benefícios Mensais e Diários (deduzida parcela do empregado) | F84: % | G84: Valor (R$)
A85: A | B85: Transporte
A86: B | B86: Desconto legal sobre transporte (máximo de 6% sobre o salário base) | H86: (inserir valor negativo)
A87: C | B87: Auxílio alimentação
A88: D | B88: Assistência médica e Familiar
A89: E | B89: Auxílio creche
A90: F | B90: Seguro de vida
A91: G | B91: Auxílio Funeral
A92: H | B92: Cesta Básica
A93: I | B93: Assistência odontológica
A94: J | B94: Outros (especificar)
A95: Valor Total de benefícios mensais e diários: | G95: =SUM(G85:G94) -> 0
A97: MÓDULO 4 - INSUMOS DIVERSOS
A98: 4 | B98: Insumos Diversos | F98: % | G98: Valor (R$)
A99: A | B99: Uniformes
A100: B | B100: EPIs
A101: C | B101: Materiais
A102: D | B102: Equipamentos
A103: D | B103: Aparelho celular
A104: F | B104: Franquia de telefonia celular
A105: G | B105: Outros (especificar)
A106: Valor Total de insumos diversos: | G106: =SUM(G99:G105) -> 0
A108: VALOR TOTAL DE REMUNERAÇÃO + ENCARGOS SOCIAIS + BENEFÍCIOS + INSUMOS | G108: =G29+G81+G95+G106 -> 0
A110: MÓDULO 5 - BONIFICAÇÃO E OUTRAS DESPESAS
A111: 5 | B111: Bonificações e outras despesas | F111: % | G111: Valor (R$)
A112: A | B112: LDI - Lucro e Despesas Indiretas | G112: =F112*$G$108 -> 0
A113: B | B113: Despesas Administrativas / Operacionais | G113: =F113*$G$108 -> 0
A114: C | B114: Outras despesas (especificar) | G114: =F114*$G$108 -> 0
A115: Valor Total de bonificações e outras despesas: | F115: =SUM(F112:F114) -> 0 | G115: =SUM(G112:G114) -> 0
A117: MÓDULO 6 - TRIBUTAÇÃO SOBRE O FATURAMENTO
A118: 6 | B118: Tributos | F118: % | G118: Valor (R$)
A119: A | B119: ISS | F119: 0.02 | G119: =($G$108+$G$115)/(1-$F$122)*F119 -> 0
A120: B | B120: PIS | F120: 0.0065 | G120: =($G$108+$G$115)/(1-$F$122)*F120 -> 0
A121: C | B121: COFINS | F121: 0.03 | G121: =($G$108+$G$115)/(1-$F$122)*F121 -> 0
A122: Valor Total dos tributos: | F122: =SUM(F119:F121) -> 0.0565 | G122: =SUM(G119:G121) -> 0
A124: VALOR MENSAL TOTAL POR EMPREGADO | G124: =G108+G115+G122 -> 0
A126: 7 - PREVISÃO DE ADICIONAL NOTURNO E DE HORAS EXTRAS
A127: Benefício | C127: Previsão (hs) | D127: Adicional | E127: Valor Base | F127: Valor com Encargos | G127: Valor com Impostos
A129: A - Hora extra (dias úteis) | C129: 0 | D129: 0.6 | E129: =C129*(D129+1)*$G$29/220 -> 0 | F129: =E129*(1+$F$81) -> 0 | G129: =F129*(1+$F$122) -> 0
A130: B - Hora extra (repouso/feriado) | C130: 0 | D130: 1 | E130: =C130*(D130+1)/220*$G$29 -> 0 | F130: =E130*(1+$F$81) -> 0 | G130: =F130*(1+$F$122) -> 0
A131: C - Adicional noturno | C131: 0 | D131: 0.3 | E131: =C131*D131/220*$G$29 -> 0 | F131: =E131*(1+$F$81) -> 0 | G131: =F131*(1+$F$122) -> 0
A132: Valor Total de Adicional Noturno e de Horas Extras: | G132: =SUM(G129:G131) -> 0
A134: QUADRO RESUMO DO VALOR MENSAL DO SERVIÇO
A135: LOTE | B135: DESCRIÇÃO | E135: QUANT. DE EMPREGADO PARA O SERVIÇO | F135: VALOR PROPOSTO POR EMPREGADO | G135: VALOR TOTAL DO SERVIÇO (mensal)
E136: =F17 -> 1 | F136: =G124 -> 0 | G136: =F136*E136 -> 0
A137: VALOR ANUAL DO SERVIÇO | G137: =G136*12 -> 0
A139: VALOR TOTAL ANUAL DO SERVIÇO COM HORAS EXTRAS, NOTURNAS E DIÁRIAS | G139: =G132+G137 -> 0
A141: *(1) Redução de 7 dias ou de 2h por dia. (Percentual relativo a contrato de 12 meses
A142: *(2) Estimativa de 5 dias de licença por ano
A143: *(3) Estimativa de 1,5% dos funcionários usufruindo 5 dias de licença por ano
A144: *(4) Estimativa de 1 ausência por ano
A145: *(5) Estimativa de 1 licença de 15 dias por ano para 8% dos funcionários
A146: *(6) Estimativa de 2% dos funcionários usufruindo de 4 meses de licença por ano
A147: *(7) Estimativa de 2% dos funcionários usufruindo de 4 meses de licença por ano
A148: *(8) Estimativa de que 5% dos funcionários serão substituídos em um ano.
A149: *(9) Estimativa de que 2% dos funcionários serão demitidos com indenização adicional.
A150: *(10) Multa de 40% do FGTS em relação aos trabalhadores contratados.
A151: *(11) Contribuição de 10% do FGTS em relação aos trabalhadores contratados.

Sheet Impressão (hidden)
A2: CÂMARA MUNICIPAL DE POUSO ALEGRE
A3: Estado de Minas Gerais
B6: ANEXO IV
B7: PLANILHA DE CUSTOS E FORMAÇÃO DE PREÇOS
B8: PREGÃO PRESENCIAL 09/2016
A11: PRESTAÇÃO DE SERVIÇOS DE CHOFERAGEM
A12: LOTE e DESCRIÇÃO:
A13: Processo nº: | E13: Pregão n°: | F13: Data:
A15: DISCRIMINAÇÃO DOS SERVIÇOS
A16: A | B16: Data de apresentação da proposta (dia/mês/ano)
A17: B | B17: Município/UF
A18: C | B18: Ano Acordo, Convenção ou Sentença Normativa em Dissídio Coletivo
A19: D | B19: No. Registro acordo convenção coletiva
A20: E | B20: Nº de meses de execução contratual | F20: 12 meses
A22: IDENTIFICAÇÃO DO SERVIÇO
A23: Unidade | B23: Tipo de Serviço | F23: Quantidade a contratar
A24: Postos | B24: Limpeza | F24: -
A25: Postos | B25: Copeiragem | F25: -
A26: Postos | B26: Choferagem | F26: 2
A27: Postos | B27: Vigia | F27: -
A28: DADOS COMPLEMENTARES PARA CUSTOS REFERENTES À MÃO DE OBRA
A29: A | B29: Salário Normativo da categoria Profissional Vigente
A30: B | B30: Categoria profissional | F30: Auxiliar de Limpeza
A31: C | B31: Data-base da categoria
A33: MÓDULO 1 - COMPOSIÇÃO DA REMUNERAÇÃO
A34: 1 | B34: Composição da Remuneração: | F34: % | G34: Valor (R$)
A35: A | B35: Salário Base
A36: B | B36: Adicionais (especificar)
A37: *Diárias, adicionais de horas extras e noturno extra em planilha à parte
A38: Valor Total da Remuneração: | G38: =SUM(G35:G37) -> 0
A40: MÓDULO 2 - ENCARGOS SOCIAIS E TRABALHISTAS INCIDENTES SOBRE A REMUNERAÇÃO
A42: Grupo 2.1 | B42: Encargos Previdenciários e FGTS | F42: % | G42: Valor (R$)
A43: A | B43: INSS | F43: 0.2 | G43: =$G$38*F43 -> 0
A44: B | B44: SESI ou SESC | F44: 0.015 | G44: =$G$38*F44 -> 0
A45: C | B45: SENAI ou SENAC | F45: 0.01 | G45: =$G$38*F45 -> 0
A46: D | B46: INCRA | F46: 0.002 | G46: =$G$38*F46 -> 0
A47: E | B47: Salário educação | F47: 0.025 | G47: =$G$38*0.025 -> 0
A48: F | B48: FGTS | F48: 0.08 | G48: =$G$38*F48 -> 0
A49: G | B49: RAT (Risco Ambiental do Trabalho) x FAP (2,00) | F49: 0.0315 | G49: =$G$38*F49 -> 0
A50: H | B50: SEBRAE | F50: 0.006 | G50: =$G$38*F50 -> 0
A51: Valor Total dos encargos previdenciários e FGTS: | F51: =SUM(F43:F50) -> 0.3695 | G51: =SUM(G43:G50) -> 0
A53: Grupo 2.2 | B53: 13º Salário e Afastamentos | F53: % | G53: Valor (R$)
A54: A | B54: 13º Salário | F54: 0.08333 | G54: =SUM($G$38*F54) -> 0
A55: B | B55: Férias | F55: 0.0833 | G55: =G38*F55 -> 0
A56: C | B56: Adicional de férias (1/3) | F56: =1/3/12 -> 0.02778 | G56: =SUM($G$38*F56) -> 0
A57: D | B57: Aviso prévio trabalhado *(1) | F57: =7/30/12 -> 0.01944 | G57: =(G38)*F57 -> 0
A58: E | B58: Ausência por doença *(2) | F58: =5/30/12 -> 0.01389 | G58: =G38*F58 -> 0
A59: F | B59: Licença Paternidade *(3) | F59: =5/30/12*0.015 -> 0.00021 | G59: =G38*F59 -> 0
A60: G | B60: Ausências Legais *(4) | F60: =1/30/12 -> 0.00278 | G60: =G38*F60 -> 0
A62: CÂMARA MUNICIPAL DE POUSO ALEGRE
A63: Estado de Minas Gerais
A65: H | B65: Ausência por acidente de trabalho *(5) | F65: =15/30/12*0.08 -> 0.00333 | G65: =G38*F65 -> 0
A66: J | B66: Outros (especificar) | G66: =G38*F66 -> 0
B67: Subtotal: | F67: =SUM(F54:F66) -> 0.23406 | G67: =SUM($G$38*F67) -> 0
A68: K | B68: Incidência do grupo 2.1 sobre o grupo 2.2 | F68: =F51*F67 -> 0.08649 | G68: =F68*G38 -> 0
A69: Valor total do 13º Salário e Afastamentos: | F69: =SUM(F67:F68) -> 0.32055 | G69: =SUM(G67:G68) -> 0
A71: Grupo 2.3 | B71: Afastamento Maternidade | F71: % | G71: Valor (R$)
A72: A | B72: Afastamento Maternidade *(6) | F72: =4/12*0.02 -> 0.00667 | G72: =G38*F72 -> 0
A73: B | B73: Férias sobre licença maternidade *(7) | F73: =0.1111*0.02*4/12 -> 0.00074 | G73: =G38*F73 -> 0
B74: Subtotal: | F74: =SUM(F72:F73) -> 0.00741 | G74: =SUM($G$38*F74) -> 0
A75: C | B75: Incidência do grupo 2.1 sobre o grupo 2.3 | F75: =F74*F51 -> 0.00274 | G75: =F75*G38 -> 0
A76: Valor total do Afastamento Maternidade: | F76: =SUM(F74:F75) -> 0.01015 | G76: =SUM(G74:G75) -> 0
A78: Grupo 2.4 | B78: Provisão para Rescisão | F78: % | G78: Valor (R$)
A79: A | B79: Aviso Prévio Indenizado *(8) | F79: =0.05*1/12 -> 0.00417 | G79: =($G$38)*F79 -> 0
A80: B | B80: Indenização Adicional *(9) | F80: =0.02*1/12 -> 0.00167 | G80: =($G$38)*F80 -> 0
A81: C | B81: Indenização (rescisão sem justa causa - multa de 40% do FGTS) *(10) | F81: =1*0.4*0.08 -> 0.032 | G81: =($G$38)*F81 -> 0
A82: D | B82: Indenização (rescisão sem justa causa - contribuição de 10% do FGTS) *(11) | F82: =1*0.1*0.08 -> 0.008 | G82: =($G$38)*F82 -> 0
A83: Subtotal: | F83: =SUM(F79:F82) -> 0.04584 | G83: =SUM(G79:G82) -> 0
A84: E | B84: Incidência do FGTS sobre o aviso prévio indenizado | F84: =F48*F79 -> 0.00033 | G84: =F84*$G$38 -> 0
A85: F | B85: Incidência do FGTS sobre o período médio de afastamento superior a 15 dias motivado por acidente de trabalho | F85: =F48*F65 -> 0.00027 | G85: =F85*$G$38 -> 0
A86: Valor total da Provisão para Rescisão: | F86: =SUM(F83:F85) -> 0.04644 | G86: =SUM(G83:G85) -> 0
A88: QUADRO RESUMO - ENCARGOS SOCIAIS E TRABALHISTAS
A89: 2 | B89: Encargos Sociais e Trabalhistas | F89: % | G89: Valor (R$)
A90: 2.1 | B90: Encargos Previdenciários e FGTS | F90: =F51 -> 0.3695 | G90: =G51 -> 0
A91: 2.2 | B91: 13º Salário e Afastamentos | F91: =F69 -> 0.32055 | G91: =G69 -> 0
A92: 2.3 | B92: Afastamento Maternidade | F92: =F76 -> 0.01015 | G92: =G76 -> 0
A93: 2.4 | B93: Provisão para Rescisão | F93: =F86 -> 0.04644 | G93: =G86 -> 0
A94: Valor Total de encargos sociais e trabalhistas: | F94: =SUM(F90:F93) -> 0.74664 | G94: =SUM(G90:G93) -> 0
A96: MÓDULO 3 - BENEFÍCIOS MENSAIS E DIÁRIOS
A97: 3 | B97: Benefícios Mensais e Diários (deduzida parcela do empregado) | F97: % | G97: Valor (R$)
A98: A | B98: Transporte
A99: B | B99: Desconto legal sobre transporte (máximo de 6% sobre o salário base)
A100: C | B100: Auxílio alimentação
A101: D | B101: Assistência médica e Familiar
A102: E | B102: Auxílio creche
A103: F | B103: Seguro de vida
A104: G | B104: Auxílio Funeral
A105: H | B105: Cesta Básica
A106: I | B106: Assistência odontológica
A107: J | B107: Outros (especificar)
A108: Valor Total de benefícios mensais e diários: | G108: =SUM(G98:G107) -> 0
A110: MÓDULO 4 - INSUMOS DIVERSOS
A111: 4 | B111: Insumos Diversos | F111: % | G111: Valor (R$)
A112: A | B112: Uniformes
A113: B | B113: EPIs
A114: C | B114: Materiais
A115: D | B115: Equipamentos
A116: D | B116: Aparelho celular
A117: F | B117: Franquia de telefonia celular
A118: G | B118: Outros (especificar)
A119: Valor Total de insumos diversos: | G119: =SUM(G112:G118) -> 0
A122: CÂMARA MUNICIPAL DE POUSO ALEGRE
A123: Estado de Minas Gerais
A125: VALOR TOTAL DE REMUNERAÇÃO + ENCARGOS SOCIAIS + BENEFÍCIOS + INSUMOS | G125: =G38+G94+G108+G119 -> 0
A127: MÓDULO 5 - BONIFICAÇÃO E OUTRAS DESPESAS
A128: 5 | B128: Bonificações e outras despesas | F128: % | G128: Valor (R$)
A129: A | B129: LDI - Lucro e Despesas Indiretas | G129: =F129*$G$125 -> 0
A130: B | B130: Despesas Administrativas / Operacionais | G130: =F130*$G$125 -> 0
A131: C | B131: Outras despesas (especificar) | G131: =F131*$G$125 -> 0
A132: Valor Total de bonificações e outras despesas: | F132: =SUM(F129:F131) -> 0 | G132: =SUM(G129:G131) -> 0
A134: MÓDULO 6 - TRIBUTAÇÃO SOBRE O FATURAMENTO
A135: 6 | B135: Tributos | F135: % | G135: Valor (R$)
A136: A | B136: ISS | F136: 0.02 | G136: =($G$125+$G$132)/(1-$F$139)*F136 -> 0
A137: B | B137: PIS | F137: 0.0065 | G137: =($G$125+$G$132)/(1-$F$139)*F137 -> 0
A138: C | B138: COFINS | F138: 0.03 | G138: =($G$125+$G$132)/(1-$F$139)*F138 -> 0
A139: Valor Total dos tributos: | F139: =SUM(F136:F138) -> 0.0565 | G139: =SUM(G136:G138) -> 0
A141: VALOR MENSAL TOTAL POR EMPREGADO | G141: =G125+G132+G139 -> 0
A143: 7 - PREVISÃO DE ADICIONAL NOTURNO E DE HORAS EXTRAS
A144: Benefício | C144: Previsão (hs) / ano | D144: Adicional | E144: Valor Base | F144: Valor com Encargos | G144: Valor com Impostos
A146: A - Hora extra (dias úteis) | C146: 260 | D146: 0.6 | E146: =C146*(D146+1)*$G$38/220 -> 0 | F146: =E146*(1+$F$94) -> 0 | G146: =F146*(1+$F$139) -> 0 | H146: *Viagens antes das 8hs ou após 18hs: 216hs e com fator de segurança de 20% = 260hs
A147: B - Hora extra (repouso/feriado) | C147: 78 | D147: 1 | E147: =C147*(D147+1)/220*$G$38 -> 0 | F147: =E147*(1+$F$94) -> 0 | G147: =F147*(1+$F$139) -> 0 | H147: *Viagens aos domingos: 32hs e com fator de segurança de 20% = 39hs
A148: C - Adicional noturno | C148: 80 | D148: 0.3 | E148: =C148*D148/220*$G$38 -> 0 | F148: =E148*(1+$F$94) -> 0 | G148: =F148*(1+$F$139) -> 0 | H148: *Total de horas após 22hs: 15hs e com fator de segurança de 20% = 18hs
A149: Valor Total de Adicional Noturno e de Horas Extras: | G149: =SUM(G146:G148) -> 0
A151: 8 - PREVISÃO DE DIÁRIAS E INDENIZAÇÃO DE ALIMENTAÇÃO
A152: Benefício | C152: Previsão Anual | D152: Valor Médio | E152: Valor Base | F152: Valor com Bonificações | G152: Valor com Impostos
A154: Diária | C154: 67 | D154: 300 | E154: =C154*D154 -> 20100 | F154: =E154*(1+$F$132) -> 20100 | G154: =F154*(1+$F$139) -> 21235.65 | H154: *Média de diárias por ano (R$16.565,71) / diária de BH-SP (R$300,00) * 1,2 (fator de segurança) = 67
A155: Indenização de Alimentação | C155: 47 | D155: 70 | E155: =C155*D155 -> 3290 | F155: =E155*(1+$F$132) -> 3290 | G155: =F155*(1+$F$139) -> 3475.89 | H155: *Média anual de 39 indenizações * 1,2 (fator de segurança) = 47
A156: Valor Total de previsão de diárias e indenização de alimentação: | G156: =SUM(G154:G155) -> 24711.54
A158: QUADRO RESUMO DO VALOR MENSAL DO SERVIÇO
A159: LOTE | B159: DESCRIÇÃO | E159: QUANT. DE EMPREGADO PARA O SERVIÇO | F159: VALOR PROPOSTO POR EMPREGADO | G159: VALOR TOTAL DO SERVIÇO (mensal)
E160: =F26 -> 2 | F160: =G141 -> 0 | G160: =F160*E160 -> 0
A161: VALOR ANUAL DO SERVIÇO | G161: =G160*12 -> 0
A163: VALOR TOTAL ANUAL DO SERVIÇO COM HORAS EXTRAS, NOTURNAS E DIÁRIAS/INDENIZAÇÕES | G163: =G149+G156+G161 -> 24711.54
A165: *(1) Redução de 7 dias ou de 2h por dia. (Percentual relativo a contrato de 12 meses
A166: *(2) Estimativa de 5 dias de licença por ano
A167: *(3) Estimativa de 1,5% dos funcionários usufruindo 5 dias de licença por ano
A168: *(4) Estimativa de 1 ausência por ano
A169: *(5) Estimativa de 1 licença de 15 dias por ano para 8% dos funcionários
A170: *(6) Estimativa de 2% dos funcionários usufruindo de 4 meses de licença por ano
A171: *(7) Estimativa de 2% dos funcionários usufruindo de 4 meses de licença por ano
A172: *(8) Estimativa de que 5% dos funcionários serão substituídos em um ano.
A173: *(9) Estimativa de que 2% dos funcionários serão demitidos com indenização adicional.
A174: *(10) Multa de 40% do FGTS em relação aos trabalhadores contratados.
A175: *(11) Contribuição de 10% do FGTS em relação aos trabalhadores contratados.
A178: CÂMARA MUNICIPAL DE POUSO ALEGRE
A179: Estado de Minas Gerais
A181: PRESTAÇÃO DE SERVIÇOS DE COPEIRAGEM
A182: LOTE e DESCRIÇÃO:
A183: Processo nº: | E183: Pregão n°: | F183: Data:
A185: DISCRIMINAÇÃO DOS SERVIÇOS
A186: A | B186: Data de apresentação da proposta (dia/mês/ano)
A187: B | B187: Município/UF
A188: C | B188: Ano Acordo, Convenção ou Sentença Normativa em Dissídio Coletivo
A189: D | B189: No. Registro acordo convenção coletiva
A190: E | B190: Nº de meses de execução contratual | F190: 7 meses
A192: IDENTIFICAÇÃO DO SERVIÇO
A193: Unidade | B193: Tipo de Serviço | F193: Quantidade a contratar
A194: Postos | B194: Limpeza | F194: -
A195: Postos | B195: Copeiragem | F195: 1
A196: Postos | B196: Choferagem | F196: -
A197: Postos | B197: Vigia | F197: -
A198: DADOS COMPLEMENTARES PARA CUSTOS REFERENTES À MÃO DE OBRA
A199: A | B199: Salário Normativo da categoria Profissional Vigente
A200: B | B200: Categoria profissional | F200: Copeira
A201: C | B201: Data-base da categoria
A203: MÓDULO 1 - COMPOSIÇÃO DA REMUNERAÇÃO
A204: 1 | B204: Composição da Remuneração: | F204: % | G204: Valor (R$)
A205: A | B205: Salário Base
A206: B | B206: Adicionais (especificar)
A207: *Diárias, adicionais de horas extras e noturno extra em planilha à parte
A208: Valor Total da Remuneração: | G208: =SUM(G205:G207) -> 0
A210: MÓDULO 2 - ENCARGOS SOCIAIS E TRABALHISTAS INCIDENTES SOBRE A REMUNERAÇÃO
A212: Grupo 2.1 | B212: Encargos Previdenciários e FGTS | F212: % | G212: Valor (R$)
A213: A | B213: INSS | F213: 0.2 | G213: =$G$29*F213 -> 0
A214: B | B214: SESI ou SESC | F214: 0.015 | G214: =$G$29*F214 -> 0
A215: C | B215: SENAI ou SENAC | F215: 0.01 | G215: =$G$29*F215 -> 0
A216: D | B216: INCRA | F216: 0.002 | G216: =$G$29*F216 -> 0
A217: E | B217: Salário educação | F217: 0.025 | G217: =$G$29*0.025 -> 0
A218: F | B218: FGTS | F218: 0.08 | G218: =$G$29*F218 -> 0
A219: G | B219: RAT (Risco Ambiental do Trabalho) x FAP (2,00) | F219: 0.06 | G219: =$G$29*F219 -> 0
A220: H | B220: SEBRAE | F220: 0.006 | G220: =$G$29*F220 -> 0
A221: Valor Total dos encargos previdenciários e FGTS: | F221: =SUM(F213:F220) -> 0.398 | G221: =SUM(G213:G220) -> 0
A223: Grupo 2.2 | B223: 13º Salário e Afastamentos | F223: % | G223: Valor (R$)
A224: A | B224: 13º Salário | F224: 0.08333 | G224: =SUM($G$29*F224) -> 0
A225: B | B225: Férias | F225: 0.0833 | G225: =G208*F225 -> 0
A226: C | B226: Adicional de férias (1/3) | F226: =1/3/12 -> 0.02778 | G226: =SUM($G$29*F226) -> 0
A227: D | B227: Aviso prévio trabalhado *(1) | F227: =7/30/12 -> 0.01944 | G227: =(G208)*F227 -> 0
A228: E | B228: Ausência por doença *(2) | F228: =5/30/12 -> 0.01389 | G228: =G208*F228 -> 0
A229: F | B229: Licença Paternidade *(3) | F229: =5/30/12*0.015 -> 0.00021 | G229: =G208*F229 -> 0
A230: G | B230: Ausências Legais *(4) | F230: =1/30/12 -> 0.00278 | G230: =G208*F230 -> 0
A231: H | B231: Ausência por acidente de trabalho *(5) | F231: =15/30/12*0.08 -> 0.00333 | G231: =G208*F231 -> 0
A232: J | B232: Outros (especificar) | G232: =G208*F232 -> 0
B233: Subtotal: | F233: =SUM(F224:F232) -> 0.23406 | G233: =SUM($G$29*F233) -> 0
A234: K | B234: Incidência do grupo 2.1 sobre o grupo 2.2 | F234: =F221*F233 -> 0.09316 | G234: =F234*G208 -> 0
A235: Valor total do 13º Salário e Afastamentos: | F235: =SUM(F233:F234) -> 0.32722 | G235: =G233+G234 -> 0
A240: CÂMARA MUNICIPAL DE POUSO ALEGRE
A241: Estado de Minas Gerais
A243: Grupo 2.3 | B243: Afastamento Maternidade | F243: % | G243: Valor (R$)
A244: A | B244: Afastamento Maternidade *(6) | F244: =4/12*0.02 -> 0.00667 | G244: =G208*F244 -> 0
A245: B | B245: Férias sobre licença maternidade *(7) | F245: =0.1111*0.02*4/12 -> 0.00074 | G245: =G208*F245 -> 0
... 349 more rows

Sheet VI - Recepção II
A1: PLANILHA DE CUSTOS E FORMAÇÃO DE PREÇOS
A2: PRESTAÇÃO DE SERVIÇOS DE RECEPÇÃO II
A3: ='I - Motorista'!A3:G3 -> Razão Social: | H3: *Preenchimento automático
A4: ='I - Motorista'!A4:D4 -> CNPJ: | D4: ='I - Motorista'!E4 -> Pregão n°: | F4: ='I - Motorista'!F4:G4 -> Data: | H4: *Preenchimento automático
A6: DISCRIMINAÇÃO DOS SERVIÇOS
A7: A | B7: Data de apresentação da proposta (dia/mês/ano)
A8: B | B8: Município/UF
A9: C | B9: Ano Acordo, Convenção ou Sentença Normativa em Dissídio Coletivo
A10: D | B10: No. Registro acordo convenção coletiva
A11: E | B11: Nº de meses de execução contratual | F11: 24 meses
A13: IDENTIFICAÇÃO DO SERVIÇO
A14: Unidade | B14: Tipo de Serviço | F14: Quantidade a contratar
A15: Postos | B15: Motorista | F15: -
A16: Postos | B16: Copeiro | F16: -
A17: Postos | B17: Limpeza I | F17: -
A18: Postos | B18: Limpeza II | F18: -
A19: Postos | B19: Recepcionista I | F19: -
A20: Postos | B20: Recepcionista II | F20: -
A21: Postos | B21: Auxiliar de Manutenção Predial | F21: -
A22: DADOS COMPLEMENTARES PARA CUSTOS REFERENTES À MÃO DE OBRA
A23: A | B23: Salário Normativo da categoria Profissional Vigente | H23: *Poderá ser considerado o salário proporcional à carga horária
A24: B | B24: Categoria profissional
A25: C | B25: Data-base da categoria
A27: MÓDULO 1 - COMPOSIÇÃO DA REMUNERAÇÃO
A28: 1 | B28: Composição da Remuneração: | F28: % | G28: Valor (R$)
A29: A | B29: Salário Base
A30: B | B30: Adicionais (especificar) | H30: *Adicional para preposto
A31: *Diárias, adicionais de horas extras e noturno extra em planilha à parte
A32: Valor Total da Remuneração: | G32: =SUM(G29:G31) -> 0 | H32: *Valor de no mínimo R$1420,11
A34: MÓDULO 2 - ENCARGOS SOCIAIS E TRABALHISTAS INCIDENTES SOBRE A REMUNERAÇÃO
A36: Grupo 2.1 | B36: Encargos Previdenciários e FGTS | F36: % | G36: Valor (R$)
A37: A | B37: INSS | F37: 0.2 | G37: =$G$32*F37 -> 0
A38: B | B38: SESI ou SESC | F38: 0.015 | G38: =$G$32*F38 -> 0
A39: C | B39: SENAI ou SENAC | F39: 0.01 | G39: =$G$32*F39 -> 0
A40: D | B40: INCRA | F40: 0.002 | G40: =$G$32*F40 -> 0
A41: E | B41: Salário educação | F41: 0.025 | G41: =$G$32*0.025 -> 0
A42: F | B42: FGTS | F42: 0.08 | G42: =$G$32*F42 -> 0
A43: G | B43: RAT (Risco Ambiental do Trabalho) x FAP (2,00) | F43: 0.03 | G43: =$G$32*F43 -> 0
A44: H | B44: SEBRAE | F44: 0.006 | G44: =$G$32*F44 -> 0
A45: Valor Total dos encargos previdenciários e FGTS: | F45: =SUM(F37:F44) -> 0.368 | G45: =SUM(G37:G44) -> 0
A47: Grupo 2.2 | B47: 13º Salário e Afastamentos | F47: % | G47: Valor (R$)
A48: A | B48: 13º Salário | F48: 0.08333 | G48: =SUM($G$32*F48) -> 0
A49: B | B49: Férias | F49: 0.0833 | G49: =G32*F49 -> 0
A50: C | B50: Adicional de férias (1/3) | F50: =1/3/12 -> 0.02778 | G50: =SUM($G$32*F50) -> 0
A51: D | B51: Aviso prévio trabalhado *(1) | F51: =7/30/12 -> 0.01944 | G51: =(G32)*F51 -> 0
A52: E | B52: Ausência por doença *(2) | F52: =5/30/12 -> 0.01389 | G52: =G32*F52 -> 0
A53: F | B53: Licença Paternidade *(3) | F53: =5/30/12*0.015 -> 0.00021 | G53: =G32*F53 -> 0
A54: G | B54: Ausências Legais *(4) | F54: =1/30/12 -> 0.00278 | G54: =G32*F54 -> 0
A55: H | B55: Ausência por acidente de trabalho *(5) | F55: =15/30/12*0.08 -> 0.00333 | G55: =G32*F55 -> 0
A56: J | B56: Outros (especificar) | G56: =G32*F56 -> 0
B57: Subtotal: | F57: =SUM(F48:F56) -> 0.23406 | G57: =SUM($G$32*F57) -> 0
A58: K | B58: Incidência do grupo 2.1 sobre o grupo 2.2 | F58: =F45*F57 -> 0.08613 | G58: =F58*G32 -> 0
A59: Valor total do 13º Salário e Afastamentos: | F59: =SUM(F57:F58) -> 0.32019 | G59: =G57+G58 -> 0
A61: Grupo 2.3 | B61: Afastamento Maternidade | F61: % | G61: Valor (R$)
A62: A | B62: Afastamento Maternidade *(6) | F62: =4/12*0.02 -> 0.00667 | G62: =G32*F62 -> 0
A63: B | B63: Férias sobre licença maternidade *(7) | F63: =0.1111*0.02*4/12 -> 0.00074 | G63: =G32*F63 -> 0
B64: Subtotal: | F64: =SUM(F62:F63) -> 0.00741 | G64: =SUM($G$32*F64) -> 0
A65: C | B65: Incidência do grupo 2.1 sobre o grupo 2.3 | F65: =F64*F45 -> 0.00273 | G65: =F65*G32 -> 0
A66: Valor total do Afastamento Maternidade: | F66: =SUM(F64:F65) -> 0.01014 | G66: =SUM(G64:G65) -> 0
A68: Grupo 2.4 | B68: Provisão para Rescisão | F68: % | G68: Valor (R$)
A69: A | B69: Aviso Prévio Indenizado *(8) | F69: =0.05*1/12 -> 0.00417 | G69: =($G$32)*F69 -> 0
A70: B | B70: Indenização Adicional *(9) | F70: =0.02*1/12 -> 0.00167 | G70: =($G$32)*F70 -> 0
A71: C | B71: Indenização (rescisão sem justa causa - multa de 40% do FGTS) *(10) | F71: =1*0.4*0.08 -> 0.032 | G71: =($G$32)*F71 -> 0
A72: D | B72: Indenização (rescisão sem justa causa - contribuição de 10% do FGTS) *(11) | F72: =1*0.1*0.08 -> 0.008 | G72: =($G$32)*F72 -> 0
A73: Subtotal: | F73: =SUM(F69:F72) -> 0.04584 | G73: =SUM(G69:G72) -> 0
A74: E | B74: Incidência do FGTS sobre o aviso prévio indenizado | F74: =F42*F69 -> 0.00033 | G74: =F74*$G$32 -> 0
A75: F | B75: Incidência do FGTS sobre o período médio de afastamento superior a 15 dias motivado por acidente de trabalho | F75: =F42*F55 -> 0.00027 | G75: =F75*$G$32 -> 0
A76: Valor total da Provisão para Rescisão: | F76: =SUM(F73:F75) -> 0.04644 | G76: =SUM(G73:G75) -> 0
A78: QUADRO RESUMO - ENCARGOS SOCIAIS E TRABALHISTAS
A79: 2 | B79: Encargos Sociais e Trabalhistas | F79: % | G79: Valor (R$)
A80: 2.1 | B80: Encargos Previdenciários e FGTS | F80: =F45 -> 0.368 | G80: =G45 -> 0
A81: 2.2 | B81: 13º Salário e Afastamentos | F81: =F59 -> 0.32019 | G81: =G59 -> 0
A82: 2.3 | B82: Afastamento Maternidade | F82: =F66 -> 0.01014 | G82: =G66 -> 0
A83: 2.4 | B83: Provisão para Rescisão | F83: =F76 -> 0.04644 | G83: =G76 -> 0
A84: Valor Total de encargos sociais e trabalhistas: | F84: =SUM(F80:F83) -> 0.74477 | G84: =SUM(G80:G83) -> 0
A86: MÓDULO 3 - BENEFÍCIOS MENSAIS E DIÁRIOS
A87: 3 | B87: Benefícios Mensais e Diários (deduzida parcela do empregado) | F87: % | G87: Valor (R$)
A88: A | B88: Transporte
A89: B | B89: Desconto legal sobre transporte (máximo de 6% sobre o salário base) | H89: (inserir valor negativo)
A90: C | B90: Auxílio alimentação
A91: D | B91: Assistência médica e Familiar
A92: E | B92: Auxílio creche
A93: F | B93: Seguro de vida
A94: G | B94: Auxílio Funeral
A95: H | B95: Cesta Básica
A96: I | B96: Assistência odontológica
A97: J | B97: Outros (especificar)
A98: Valor Total de benefícios mensais e diários: | G98: =SUM(G88:G97) -> 0
A100: MÓDULO 4 - INSUMOS DIVERSOS
A101: 4 | B101: Insumos Diversos | F101: % | G101: Valor (R$)
A102: A | B102: Uniformes
A103: B | B103: EPIs
A104: C | B104: Materiais
A105: D | B105: Equipamentos (ponto eletrônico, outros)
A106: D | B106: Aparelho celular
A107: F | B107: Franquia de telefonia celular
A108: G | B108: Outros (especificar)
A109: Valor Total de insumos diversos: | G109: =SUM(G102:G108) -> 0
A111: VALOR TOTAL DE REMUNERAÇÃO + ENCARGOS SOCIAIS + BENEFÍCIOS + INSUMOS | G111: =G32+G84+G98+G109 -> 0
A113: MÓDULO 5 - BONIFICAÇÃO E OUTRAS DESPESAS
A114: 5 | B114: Bonificações e outras despesas | F114: % | G114: Valor (R$)
A115: A | B115: LDI - Lucro e Despesas Indiretas | G115: =F115*$G$111 -> 0
A116: B | B116: Despesas Administrativas / Operacionais | G116: =F116*$G$111 -> 0
A117: C | B117: Outras despesas (especificar) | G117: =F117*$G$111 -> 0
A118: Valor Total de bonificações e outras despesas: | F118: =SUM(F115:F117) -> 0 | G118: =SUM(G115:G117) -> 0
A120: MÓDULO 6 - TRIBUTAÇÃO SOBRE O FATURAMENTO
A121: 6 | B121: Tributos | F121: % | G121: Valor (R$)
A122: A | B122: ISS | G122: =($G$111+$G$118)/(1-$F$125)*F122 -> 0
A123: B | B123: PIS | G123: =($G$111+$G$118)/(1-$F$125)*F123 -> 0
A124: C | B124: COFINS | G124: =($G$111+$G$118)/(1-$F$125)*F124 -> 0
A125: Valor Total dos tributos: | F125: =SUM(F122:F124) -> 0 | G125: =SUM(G122:G124) -> 0
A127: VALOR MENSAL TOTAL POR EMPREGADO | G127: =G111+G118+G125 -> 0
A129: 7 - PREVISÃO DE ADICIONAL NOTURNO E DE HORAS EXTRAS
A130: Benefício | C130: Previsão (hs) | D130: Adicional | E130: Valor Base | F130: Valor com Encargos | G130: Valor com Impostos
J131: http://www.portaleducacao.com.br/contabilidade/artigos/51238/calculo-hora-extra-noturna
A132: A - Hora extra (dias úteis) | C132: 230 | D132: 0.5 | E132: =C132*(D132+1)*$G$32/180 -> 0 | F132: =E132*(1+$F$84) -> 0 | G132: =F132/(1-$F$125) -> 0
A133: B - Hora extra (repouso/feriado) | C133: 36 | D133: 1 | E133: =C133*(D133+1)/180*$G$32 -> 0 | F133: =E133*(1+$F$84) -> 0 | G133: =F133/(1-$F$125) -> 0
A134: C - Hora extra noturna | C134: 24 | D134: 0.2 | E134: =C134*$G$32/180*(1+D132)*(1+D134)*(1/52.5*60) -> 0 | F134: =E134*(1+$F$84) -> 0 | G134: =F134/(1-$F$125) -> 0
A135: Valor Total de Adicional Noturno e de Horas Extras: | G135: =SUM(G132:G134) -> 0
A137: QUADRO RESUMO DO VALOR MENSAL DO SERVIÇO
A138: ITEM | B138: DESCRIÇÃO | E138: QUANT. DE EMPREGADO PARA O SERVIÇO | F138: VALOR PROPOSTO POR EMPREGADO | G138: VALOR TOTAL DO SERVIÇO
E139: - | F139: =G127 -> 0 | G139: =F139*E139 ->  | H139: *Valor Mensal sem horas extras
A140: VALOR DO SERVIÇO ANUAL | G140: =G139*12 -> 
A142: VALOR TOTAL BIENAL DO SERVIÇO COM HORAS EXTRAS E NOTURNAS | G142: =(G135+G140)*2 -> 
A144: *(1) Redução de 7 dias ou de 2h por dia. (Percentual relativo a contrato de 12 meses
A145: *(2) Estimativa de 5 dias de licença por ano
A146: *(3) Estimativa de 1,5% dos funcionários usufruindo 5 dias de licença por ano
A147: *(4) Estimativa de 1 ausência por ano
A148: *(5) Estimativa de 1 licença de 15 dias por ano para 8% dos funcionários
A149: *(6) Estimativa de 2% dos funcionários usufruindo de 4 meses de licença por ano
A150: *(7) Estimativa de 2% dos funcionários usufruindo de 4 meses de licença por ano
A151: *(8) Estimativa de que 5% dos funcionários serão substituídos em um ano.
A152: *(9) Estimativa de que 2% dos funcionários serão demitidos com indenização adicional.
A153: *(10) Multa de 40% do FGTS em relação aos trabalhadores contratados.
A154: *(11) Contribuição de 10% do FGTS em relação aos trabalhadores contratados.

Sheet VII - Auxiliar de Manut. Pred.
A1: PLANILHA DE CUSTOS E FORMAÇÃO DE PREÇOS
A2: PRESTAÇÃO DE SERVIÇOS DE AUXILIAR DE MANUTENÇÃO PREDIAL
A3: ='I - Motorista'!A3:G3 -> Razão Social:
A4: ='I - Motorista'!A4:D4 -> CNPJ: | D4: ='I - Motorista'!E4 -> Pregão n°: | F4: ='I - Motorista'!F4:G4 -> Data:
A6: DISCRIMINAÇÃO DOS SERVIÇOS
A7: A | B7: Data de apresentação da proposta (dia/mês/ano)
A8: B | B8: Município/UF
A9: C | B9: Ano Acordo, Convenção ou Sentença Normativa em Dissídio Coletivo
A10: D | B10: No. Registro acordo convenção coletiva
A11: E | B11: Nº de meses de execução contratual | F11: 24 meses
A13: IDENTIFICAÇÃO DO SERVIÇO
A14: Unidade | B14: Tipo de Serviço | F14: Quantidade a contratar
A15: Postos | B15: Motorista | F15: -
A16: Postos | B16: Copeiro | F16: -
A17: Postos | B17: Limpeza I | F17: -
A18: Postos | B18: Limpeza II | F18: -
A19: Postos | B19: Recepcionista I | F19: -
A20: Postos | B20: Recepcionista II | F20: -
A21: Postos | B21: Auxiliar de Manutenção Predial | F21: -
A22: DADOS COMPLEMENTARES PARA CUSTOS REFERENTES À MÃO DE OBRA
A23: A | B23: Salário Normativo da categoria Profissional Vigente
A24: B | B24: Categoria profissional
A25: C | B25: Data-base da categoria
A27: MÓDULO 1 - COMPOSIÇÃO DA REMUNERAÇÃO
A28: 1 | B28: Composição da Remuneração: | F28: % | G28: Valor (R$)
A29: A | B29: Salário Base | G29: 0 | H29: *Poderá ser considerado o salário proporcional à carga horária
A30: B | B30: Adicionais (especificar) | F30: 0.3 | G30: =G29*F30 -> 0 | H30: *Adicionar 30% referente a adicional de periculosidade.
A31: *Diárias, adicionais de horas extras e noturno extra em planilha à parte
A32: Valor Total da Remuneração: | G32: =SUM(G29:G31) -> 0
A34: MÓDULO 2 - ENCARGOS SOCIAIS E TRABALHISTAS INCIDENTES SOBRE A REMUNERAÇÃO
A36: Grupo 2.1 | B36: Encargos Previdenciários e FGTS | F36: % | G36: Valor (R$)
A37: A | B37: INSS | F37: 0.2 | G37: =$G$32*F37 -> 0
A38: B | B38: SESI ou SESC | F38: 0.015 | G38: =$G$32*F38 -> 0
A39: C | B39: SENAI ou SENAC | F39: 0.01 | G39: =$G$32*F39 -> 0
A40: D | B40: INCRA | F40: 0.002 | G40: =$G$32*F40 -> 0
A41: E | B41: Salário educação | F41: 0.025 | G41: =$G$32*0.025 -> 0
A42: F | B42: FGTS | F42: 0.08 | G42: =$G$32*F42 -> 0
A43: G | B43: RAT (Risco Ambiental do Trabalho) x FAP (2,00) | F43: 0.03 | G43: =$G$32*F43 -> 0
A44: H | B44: SEBRAE | F44: 0.006 | G44: =$G$32*F44 -> 0
A45: Valor Total dos encargos previdenciários e FGTS: | F45: =SUM(F37:F44) -> 0.368 | G45: =SUM(G37:G44) -> 0
A47: Grupo 2.2 | B47: 13º Salário e Afastamentos | F47: % | G47: Valor (R$)
A48: A | B48: 13º Salário | F48: 0.08333 | G48: =SUM($G$32*F48) -> 0
A49: B | B49: Férias | F49: 0.0833 | G49: =G32*F49 -> 0
A50: C | B50: Adicional de férias (1/3) | F50: =1/3/12 -> 0.02778 | G50: =SUM($G$32*F50) -> 0
A51: D | B51: Aviso prévio trabalhado *(1) | F51: =7/30/12 -> 0.01944 | G51: =(G32)*F51 -> 0
A52: E | B52: Ausência por doença *(2) | F52: =5/30/12 -> 0.01389 | G52: =G32*F52 -> 0
A53: F | B53: Licença Paternidade *(3) | F53: =5/30/12*0.015 -> 0.00021 | G53: =G32*F53 -> 0
A54: G | B54: Ausências Legais *(4) | F54: =1/30/12 -> 0.00278 | G54: =G32*F54 -> 0
A55: H | B55: Ausência por acidente de trabalho *(5) | F55: =15/30/12*0.08 -> 0.00333 | G55: =G32*F55 -> 0
A56: J | B56: Outros (especificar) | G56: =G32*F56 -> 0
B57: Subtotal: | F57: =SUM(F48:F56) -> 0.23406 | G57: =SUM($G$32*F57) -> 0
A58: K | B58: Incidência do grupo 2.1 sobre o grupo 2.2 | F58: =F45*F57 -> 0.08613 | G58: =F58*G32 -> 0
A59: Valor total do 13º Salário e Afastamentos: | F59: =SUM(F57:F58) -> 0.32019 | G59: =G57+G58 -> 0
A61: Grupo 2.3 | B61: Afastamento Maternidade | F61: % | G61: Valor (R$)
A62: A | B62: Afastamento Maternidade *(6) | F62: =4/12*0.02 -> 0.00667 | G62: =G32*F62 -> 0
A63: B | B63: Férias sobre licença maternidade *(7) | F63: =0.1111*0.02*4/12 -> 0.00074 | G63: =G32*F63 -> 0
B64: Subtotal: | F64: =SUM(F62:F63) -> 0.00741 | G64: =SUM($G$32*F64) -> 0
A65: C | B65: Incidência do grupo 2.1 sobre o grupo 2.3 | F65: =F64*F45 -> 0.00273 | G65: =F65*G32 -> 0
A66: Valor total do Afastamento Maternidade: | F66: =SUM(F64:F65) -> 0.01014 | G66: =SUM(G64:G65) -> 0
A68: Grupo 2.4 | B68: Provisão para Rescisão | F68: % | G68: Valor (R$)
A69: A | B69: Aviso Prévio Indenizado *(8) | F69: =0.05*1/12 -> 0.00417 | G69: =($G$32)*F69 -> 0
A70: B | B70: Indenização Adicional *(9) | F70: =0.02*1/12 -> 0.00167 | G70: =($G$32)*F70 -> 0
A71: C | B71: Indenização (rescisão sem justa causa - multa de 40% do FGTS) *(10) | F71: =1*0.4*0.08 -> 0.032 | G71: =($G$32)*F71 -> 0
A72: D | B72: Indenização (rescisão sem justa causa - contribuição de 10% do FGTS) *(11) | F72: =1*0.1*0.08 -> 0.008 | G72: =($G$32)*F72 -> 0
A73: Subtotal: | F73: =SUM(F69:F72) -> 0.04584 | G73: =SUM(G69:G72) -> 0
A74: E | B74: Incidência do FGTS sobre o aviso prévio indenizado | F74: =F42*F69 -> 0.00033 | G74: =F74*$G$32 -> 0
A75: F | B75: Incidência do FGTS sobre o período médio de afastamento superior a 15 dias motivado por acidente de trabalho | F75: =F42*F55 -> 0.00027 | G75: =F75*$G$32 -> 0
A76: Valor total da Provisão para Rescisão: | F76: =SUM(F73:F75) -> 0.04644 | G76: =SUM(G73:G75) -> 0
A78: QUADRO RESUMO - ENCARGOS SOCIAIS E TRABALHISTAS
A79: 2 | B79: Encargos Sociais e Trabalhistas | F79: % | G79: Valor (R$)
A80: 2.1 | B80: Encargos Previdenciários e FGTS | F80: =F45 -> 0.368 | G80: =G45 -> 0
A81: 2.2 | B81: 13º Salário e Afastamentos | F81: =F59 -> 0.32019 | G81: =G59 -> 0
A82: 2.3 | B82: Afastamento Maternidade | F82: =F66 -> 0.01014 | G82: =G66 -> 0
A83: 2.4 | B83: Provisão para Rescisão | F83: =F76 -> 0.04644 | G83: =G76 -> 0
A84: Valor Total de encargos sociais e trabalhistas: | F84: =SUM(F80:F83) -> 0.74477 | G84: =SUM(G80:G83) -> 0
A86: MÓDULO 3 - BENEFÍCIOS MENSAIS E DIÁRIOS
A87: 3 | B87: Benefícios Mensais e Diários (deduzida parcela do empregado) | F87: % | G87: Valor (R$)
A88: A | B88: Transporte
A89: B | B89: Desconto legal sobre transporte (máximo de 6% sobre o salário base) | H89: (inserir valor negativo)
A90: C | B90: Auxílio alimentação
A91: D | B91: Assistência médica e Familiar
A92: E | B92: Auxílio creche
A93: F | B93: Seguro de vida
A94: G | B94: Auxílio Funeral
A95: H | B95: Cesta Básica
A96: I | B96: Assistência odontológica
A97: J | B97: Outros (especificar)
A98: Valor Total de benefícios mensais e diários: | G98: =SUM(G88:G97) -> 0
A100: MÓDULO 4 - INSUMOS DIVERSOS
A101: 4 | B101: Insumos Diversos | F101: % | G101: Valor (R$)
A102: A | B102: Uniformes
A103: B | B103: EPIs
A104: C | B104: Materiais
A105: D | B105: Equipamentos (ponto eletrônico, outros)
A106: D | B106: Aparelho celular
A107: F | B107: Franquia de telefonia celular
A108: G | B108: Outros (especificar)
A109: Valor Total de insumos diversos: | G109: =SUM(G102:G108) -> 0
A111: VALOR TOTAL DE REMUNERAÇÃO + ENCARGOS SOCIAIS + BENEFÍCIOS + INSUMOS | G111: =G32+G84+G98+G109 -> 0
A113: MÓDULO 5 - BONIFICAÇÃO E OUTRAS DESPESAS
A114: 5 | B114: Bonificações e outras despesas | F114: % | G114: Valor (R$)
A115: A | B115: LDI - Lucro e Despesas Indiretas | G115: =F115*$G$111 -> 0
A116: B | B116: Despesas Administrativas / Operacionais | G116: =F116*$G$111 -> 0
A117: C | B117: Outras despesas (especificar) | G117: =F117*$G$111 -> 0
A118: Valor Total de bonificações e outras despesas: | F118: =SUM(F115:F117) -> 0 | G118: =SUM(G115:G117) -> 0
A120: MÓDULO 6 - TRIBUTAÇÃO SOBRE O FATURAMENTO
A121: 6 | B121: Tributos | F121: % | G121: Valor (R$)
A122: A | B122: ISS | G122: =($G$111+$G$118)/(1-$F$125)*F122 -> 0
A123: B | B123: PIS | G123: =($G$111+$G$118)/(1-$F$125)*F123 -> 0
A124: C | B124: COFINS | G124: =($G$111+$G$118)/(1-$F$125)*F124 -> 0
A125: Valor Total dos tributos: | F125: =SUM(F122:F124) -> 0 | G125: =SUM(G122:G124) -> 0
A127: VALOR MENSAL TOTAL POR EMPREGADO | G127: =G111+G118+G125 -> 0
A129: 7 - PREVISÃO DE ADICIONAL NOTURNO E DE HORAS EXTRAS
A130: Benefício | C130: Previsão (hs) | D130: Adicional | E130: Valor Base | F130: Valor com Encargos | G130: Valor com Impostos
A132: A - Hora extra (dias úteis) | C132: 44 | D132: 0.5 | E132: =C132*(D132+1)*$G$32/150 -> 0 | F132: =E132*(1+$F$84) -> 0 | G132: =F132/(1-$F$125) -> 0
A133: B - Hora extra (repouso/feriado) | C133: 6 | D133: 1 | E133: =C133*(D133+1)/150*$G$32 -> 0 | F133: =E133*(1+$F$84) -> 0 | G133: =F133/(1-$F$125) -> 0
A134: C - Hora extra noturna | C134: 4 | D134: 0.2 | E134: =C134*$G$32/150*(1+D132)*(1+D134)*(1/52.5*60) -> 0 | F134: =E134*(1+$F$84) -> 0 | G134: =F134/(1-$F$125) -> 0
A135: Valor Total de Adicional Noturno e de Horas Extras: | G135: =SUM(G132:G134) -> 0
A137: QUADRO RESUMO DO VALOR MENSAL DO SERVIÇO
A138: ITEM | B138: DESCRIÇÃO | E138: QUANT. DE EMPREGADO PARA O SERVIÇO | F138: VALOR PROPOSTO POR EMPREGADO | G138: VALOR TOTAL DO SERVIÇO
E139: - | F139: =G127 -> 0 | G139: =F139*E139 ->  | H139: *Valor Mensal sem horas extras
A140: VALOR DO SERVIÇO ANUAL | G140: =G139*12 -> 
A142: VALOR TOTAL BIENAL DO SERVIÇO COM HORAS EXTRAS, NOTURNAS E DIÁRIAS/INDENIZAÇÕES | G142: =(G135+G140)*2 -> 
A144: *(1) Redução de 7 dias ou de 2h por dia. (Percentual relativo a contrato de 12 meses
A145: *(2) Estimativa de 5 dias de licença por ano
A146: *(3) Estimativa de 1,5% dos funcionários usufruindo 5 dias de licença por ano
A147: *(4) Estimativa de 1 ausência por ano
A148: *(5) Estimativa de 1 licença de 15 dias por ano para 8% dos funcionários
A149: *(6) Estimativa de 2% dos funcionários usufruindo de 4 meses de licença por ano
A150: *(7) Estimativa de 2% dos funcionários usufruindo de 4 meses de licença por ano
A151: *(8) Estimativa de que 5% dos funcionários serão substituídos em um ano.
A152: *(9) Estimativa de que 2% dos funcionários serão demitidos com indenização adicional.
A153: *(10) Multa de 40% do FGTS em relação aos trabalhadores contratados.
A154: *(11) Contribuição de 10% do FGTS em relação aos trabalhadores contratados.
